Workbook

Sheet Einbau HB
A1: Projekt | B1: Einbau Hilfsbrücke | H1: Uhrzeit-berechnung: | I1: 01:00:00 | J1: Start (Datum/Uhrzeit) eingeben: | L1: 2022-01-02T23:00:00
A2: Vor-gangs- Nr. | B2: Vorgangsbezeichnung | C2: Position Katalog | D2: Hinweise/Bemerkungen | E2: Leistungs-menge | F2: Einheit Leistungs-menge Erläuterung | G2: Leistungs-wert Katalog | H2: Einheit Leistungswert Erläuterung | I2: Dauer (rechn.) | J2: Dauer (gewählt) | K2: Para-llelität in % | L2: Beginn | M2: Ende | N2: Bemerkung | O2: Tag-wechsel | Q2: Prüfung Anfangszeit | R2: Prüfung Dauer gewählt zu klein | S2: Prüfung Dauer gewählt zu groß | T2: Prüfung Parallelität
A3: 1 | B3: 2 | C3: 3 | D3: 4 | E3: 5 | F3: 6 | G3: 7 | H3: 8 | I3: 9 | J3: 10 | K3: 11 | L3: 12 | M3: 13 | N3: 14 | O3: 15 | Q3: 16 | R3: 17 | S3: 18 | T3: 19
A4: 0 | B4: Vorbereitende Maßnahmen definieren, z.B. BE-Fläche, Anrampung, Baustrom, Kabelumverlegung, Verbau zum Nachbargleis, Feste Absperrung, Bodengutachten, Kampfmittelsondierung, Gründung Hilfsbrücke | D4: Im Vorfeld in einer gesonderten (Gleis-)Sperrung zu realisieren. | O4: 0 | Q4: =IF(L4=0,"Bitte prüfen","") -> Bitte prüfen | R4: =IF(J4/I4<0.5,"Bitte prüfen","") ->  | S4: =IF(J4/I4>2.5,"Bitte prüfen","") ->  | T4: =IF(K4<0,"Bitte prüfen",IF(K4>1.5,"Bitte prüfen","")) -> 
A6: =MAX(A4:A5)+1 -> 1 | B6: Sperrung einrichten | C6: 08.01.01.01 | D6: Regelungen Betra beachten | E6: 1 | F6: psch | G6: 2 | H6: psch/h | I6: =E6/G6*I$1 -> 0.02083333333 | J6: 0.02083333333 | K6: 0 | L6: =L1 -> 2022-01-02T23:00:00 | M6: =L6+J6 -> 2022-01-02T23:30:00 | O6: 1 | Q6: =IF(L6=0,"Bitte prüfen","") ->  | R6: =IF(J6/I6<0.5,"Bitte prüfen","") ->  | S6: =IF(J6/I6>2.5,"Bitte prüfen","") ->  | T6: =IF(K6<0,"Bitte prüfen",IF(K6>1.5,"Bitte prüfen","")) -> 
A8: =MAX(A4:A7)+1 -> 2 | B8: Oberleitung abschalten und Erdungsvorrichtung einbauen (1 Schaltgruppe) | C8: 08.01.02.01 | E8: 2 | F8: psch | G8: 4 | H8: psch/h | I8: =E8/G8*I$1 -> 0.02083333333 | J8: 0.02083333333 | K8: 0.5 | L8: =IF(K8=100%,L6,IF(K8>0%,M6-J6*K8,M6)) -> 2022-01-02T23:15:00 | M8: =L8+J8 -> 2022-01-02T23:45:00 | Q8: =IF(L8=0,"Bitte prüfen","") ->  | R8: =IF(J8/I8<0.5,"Bitte prüfen","") ->  | S8: =IF(J8/I8>2.5,"Bitte prüfen","") ->  | T8: =IF(K8<0,"Bitte prüfen",IF(K8>1.5,"Bitte prüfen","")) -> 
D9: Teilparallelität zu Vorgang Nr. 1
A10: =MAX(A6:A9)+1 -> 3 | B10: Gleisschaltmittel (Achszähler, PZB, Linienleiter, Balisen etc.) abbauen | C10: 07.01.02.02/ 07.01.02.05/ 07.01.03.02 | D10: kann ggf. zu Bahnerdung parallel laufen (kein ZWB - nur Personal) | E10: 3 | F10: St | G10: 3 | H10: St/h | I10: =E10/G10*I$1 -> 0.04166666667 | J10: 0.04166666667 | K10: 1 | L10: =IF(K10=100%,L8,IF(K10>0%,M8-J8*K10,M8)) -> 2022-01-02T23:15:00 | M10: =L10+J10 -> 2022-01-03T00:15:00 | O10: 2 | Q10: =IF(L10=0,"Bitte prüfen","") ->  | R10: =IF(J10/I10<0.5,"Bitte prüfen","") ->  | S10: =IF(J10/I10>2.5,"Bitte prüfen","") ->  | T10: =IF(K10<0,"Bitte prüfen",IF(K10>1.5,"Bitte prüfen","")) -> 
D11: Der Vorgang kann frühestens parallel zu Vorgang 2 beginnen | F11: Annahme getroffen
A12: =MAX(A8:A11)+1 -> 4 | B12: Erdungseinrichtungen (Schienen-, Gleisverbinder, Betriebserden etc.) abbauen | C12: 06.08.02.03 | D12: absolute Parallelität zu Vorgang Nr. 3, jedoch muss der Vorgang Nr. 2 vorher abgeschlossen sein. | E12: 4 | F12: St | G12: 4 | H12: St/h | I12: =E12/G12*I$1 -> 0.04166666667 | J12: 0.04166666667 | K12: 1 | L12: 2022-01-02T23:45:00 | M12: =L12+J12 -> 2022-01-03T00:45:00 | N12: Beginnzeit händisch gesetzt, da Vorgang 2 abgeschlossen sein muss. | Q12: =IF(L12=0,"Bitte prüfen","") ->  | R12: =IF(J12/I12<0.5,"Bitte prüfen","") ->  | S12: =IF(J12/I12>2.5,"Bitte prüfen","") ->  | T12: =IF(K12<0,"Bitte prüfen",IF(K12>1.5,"Bitte prüfen","")) -> 
H13: Leistungsmenge stark abhängig von der Lage des Bauwerks
A14: =MAX(A10:A13)+1 -> 5 | B14: Rückstromführung montieren | C14: 06.08.01.07 | D14: Rücksprache mit Fachplaner, ob die Leistung erforderlich ist! | E14: 2 | F14: St | G14: 1 | H14: St/h | I14: =E14/G14*I$1 -> 0.08333333333 | J14: 0.08333333333 | K14: 0.5 | L14: =IF(K14=100%,L12,IF(K14>0%,M12-J12*K14,M12)) -> 2022-01-03T00:15:00 | M14: =L14+J14 -> 2022-01-03T02:15:00 | Q14: =IF(L14=0,"Bitte prüfen","") ->  | R14: =IF(J14/I14<0.5,"Bitte prüfen","") ->  | S14: =IF(J14/I14>2.5,"Bitte prüfen","") ->  | T14: =IF(K14<0,"Bitte prüfen",IF(K14>1.5,"Bitte prüfen","")) -> 
D15: Parallel zu Vorgang Nr. 4
A16: =MAX(A12:A15)+1 -> 6 | B16: OLA aus-/verschwenken/verziehen | C16: 06.01.01.01 | D16: ca. 60 min freie Strecke, ca 120 min Bahnhof | E16: 90 | F16: m | G16: 60 | H16: m/h | I16: =E16/G16*I$1 -> 0.0625 | J16: 0.0625 | K16: 0 | L16: =IF(K16=100%,L14,IF(K16>0%,M14-J14*K16,M14)) -> 2022-01-03T02:15:00 | M16: =L16+J16 -> 2022-01-03T03:45:00 | Q16: =IF(L16=0,"Bitte prüfen","") ->  | R16: =IF(J16/I16<0.5,"Bitte prüfen","") ->  | S16: =IF(J16/I16>2.5,"Bitte prüfen","") ->  | T16: =IF(K16<0,"Bitte prüfen",IF(K16>1.5,"Bitte prüfen","")) -> 
D17: in der Regel 2 Kettenwerkslängen
A18: =MAX(A14:A17)+1 -> 7 | B18: Schienen trennen/schneiden (Trennschnitt) | C18: 02.01.01.01 | D18: zur Wiederverwendung je 2 Schnitte recht, links | E18: 4 | F18: St | G18: 6 | H18: St/h | I18: =E18/G18*I$1 -> 0.02777777778 | J18: 0.03125 | K18: 0 | L18: =IF(K18=100%,L16,IF(K18>0%,M16-J16*K18,M16)) -> 2022-01-03T03:45:00 | M18: =L18+J18 -> 2022-01-03T04:30:00 | Q18: =IF(L18=0,"Bitte prüfen","") ->  | R18: =IF(J18/I18<0.5,"Bitte prüfen","") ->  | S18: =IF(J18/I18>2.5,"Bitte prüfen","") ->  | T18: =IF(K18<0,"Bitte prüfen",IF(K18>1.5,"Bitte prüfen","")) -> 
D19: Trennschnitte vor der Hilfsbrücke in Abhänigkeit von der Geschwindigkeit 3, 5 oder 10 m (Schwellenteilung)
A20: =MAX(A16:A19)+1 -> 8 | B20: Schienen lösen und verziehen | C20: 02.02.02.01 | D20: Schiene lösen mit Schrauber (2 Trupps á 2 Leute) | E20: 70 | F20: 2 x 30-40 m | G20: 150 | H20: m/h | I20: =E20/G20*I$1 -> 0.01944444444 | J20: 0.02083333333 | K20: 0 | L20: =IF(K20=100%,L18,IF(K20>0%,M18-J18*K20,M18)) -> 2022-01-03T04:30:00 | M20: =L20+J20 -> 2022-01-03T05:00:00 | Q20: =IF(L20=0,"Bitte prüfen","") ->  | R20: =IF(J20/I20<0.5,"Bitte prüfen","") ->  | S20: =IF(J20/I20>2.5,"Bitte prüfen","") ->  | T20: =IF(K20<0,"Bitte prüfen",IF(K20>1.5,"Bitte prüfen","")) -> 
F21: Schiene
A22: =MAX(A18:A21)+1 -> 9 | B22: Regelfall: Holzschwellen ausbauen, transportieren und lagern | C22: 02.02.01.01 | D22: 3 Stück am Haken (10-15 min); abhängig von Beton- oder Holzschwelle | E22: 40 | F22: 30 - 40 m | G22: 55 | H22: m/h | I22: =E22/G22*I$1 -> 0.0303030303 | J22: 0.03125 | K22: 0 | L22: =IF(K22=100%,L20,IF(K22>0%,M20-J20*K22,M20)) -> 2022-01-03T05:00:00 | M22: =L22+J22 -> 2022-01-03T05:45:00 | Q22: =IF(L22=0,"Bitte prüfen","") ->  | R22: =IF(J22/I22<0.5,"Bitte prüfen","") ->  | S22: =IF(J22/I22>2.5,"Bitte prüfen","") ->  | T22: =IF(K22<0,"Bitte prüfen",IF(K22>1.5,"Bitte prüfen","")) -> 
F23: Gleis | H23: Zwei 2-Wege-Bagger im Einsatz
A24: 9a | B24: Alternativ: Montageschiene aufschrauben | C24: 02.02.07.01 | E24: 40 | F24: 30 - 40 m | G24: 70 | H24: m/h | I24: =E24/G24*I$1 -> 0.02380952381 | J24: 0.02083333333 | K24: 1 | N24: Keine Zeiten eingetragen, da Alternative für Pos. 9 | Q24: =IF(L24=0,"Bitte prüfen","") -> Bitte prüfen | R24: =IF(J24/I24<0.5,"Bitte prüfen","") ->  | S24: =IF(J24/I24>2.5,"Bitte prüfen","") ->  | T24: =IF(K24<0,"Bitte prüfen",IF(K24>1.5,"Bitte prüfen","")) -> 
F25: Gleis
A26: 9b | B26: Alternativ: Jochweise (10 m) rausheben, transportieren und lagern | C26: 02.02.01.04 | D26: 6m Betonschwellen, 10m Holzschwellen | E26: 40 | F26: 30 - 40 m | G26: 60 | H26: m/h | I26: =E26/G26*I$1 -> 0.02777777778 | J26: 0.03125 | K26: 1 | N26: Keine Zeiten eingetragen, da Alternative für Pos. 9 | Q26: =IF(L26=0,"Bitte prüfen","") -> Bitte prüfen | R26: =IF(J26/I26<0.5,"Bitte prüfen","") ->  | S26: =IF(J26/I26>2.5,"Bitte prüfen","") ->  | T26: =IF(K26<0,"Bitte prüfen",IF(K26>1.5,"Bitte prüfen","")) -> 
F27: Gleis
A28: =MAX(A20:A27)+1 -> 10 | B28: Schotter ausbauen | C28: 02.02.03.06 | D28: hier als Beispiel Kleinstmengen Verladung auf Res-Wagen vor Kopf | E28: 80 | F28: 75 - 100 m3 | G28: 30 | H28: m3/h | I28: =E28/G28*I$1 -> 0.1111111111 | J28: 0.125 | K28: 0 | L28: =IF(K28=100%,L22,IF(K28>0%,M22-J22*K28,M22)) -> 2022-01-03T05:45:00 | M28: =L28+J28 -> 2022-01-03T08:45:00 | Q28: =IF(L28=0,"Bitte prüfen","") ->  | R28: =IF(J28/I28<0.5,"Bitte prüfen","") ->  | S28: =IF(J28/I28>2.5,"Bitte prüfen","") ->  | T28: =IF(K28<0,"Bitte prüfen",IF(K28>1.5,"Bitte prüfen","")) -> 
A30: =MAX(A26:A29)+1 -> 11 | B30: Kopfloch herstellen Seite 1 | C30: 03.06.01.01 | D30: Verbau zum Nachbargleis in vorheriger Sperrpause in Verbindung mit Herstellung Gründung (Bohrpfahl oder HEB-Träger) paralleles Arbeiten an beiden Kopflöchern | E30: 1 | F30: St | G30: 2 | H30: St/h | I30: =E30/G30*I$1 -> 0.02083333333 | J30: 0.02083333333 | K30: 0 | L30: =IF(K30=100%,L28,IF(K30>0%,M28-J28*K30,M28)) -> 2022-01-03T08:45:00 | M30: =L30+J30 -> 2022-01-03T09:15:00 | Q30: =IF(L30=0,"Bitte prüfen","") ->  | R30: =IF(J30/I30<0.5,"Bitte prüfen","") ->  | S30: =IF(J30/I30>2.5,"Bitte prüfen","") ->  | T30: =IF(K30<0,"Bitte prüfen",IF(K30>1.5,"Bitte prüfen","")) -> 
A32: =MAX(A28:A31)+1 -> 12 | B32: Kopfloch herstellen Seite 2 | C32: 03.06.01.01 | E32: 1 | F32: St | G32: 2 | H32: St/h | I32: =E32/G32*I$1 -> 0.02083333333 | J32: 0.02083333333 | K32: 1 | L32: =IF(K32=100%,L30,IF(K32>0%,M30-J30*K32,M30)) -> 2022-01-03T08:45:00 | M32: =L32+J32 -> 2022-01-03T09:15:00 | Q32: =IF(L32=0,"Bitte prüfen","") ->  | R32: =IF(J32/I32<0.5,"Bitte prüfen","") ->  | S32: =IF(J32/I32>2.5,"Bitte prüfen","") ->  | T32: =IF(K32<0,"Bitte prüfen",IF(K32>1.5,"Bitte prüfen","")) -> 
A34: =MAX(A30:A33)+1 -> 13 | B34: Verbauträger kürzen Seite 1 | C34: 03.06.01.02 | D34: ca. 30 min pro Träger, 3-4 Träger je Seite | E34: 3 | F34: St | G34: 2 | H34: St/h | I34: =E34/G34*I$1 -> 0.0625 | J34: 0.0625 | K34: 0 | L34: =IF(K34=100%,L32,IF(K34>0%,M32-J32*K34,M32)) -> 2022-01-03T09:15:00 | M34: =L34+J34 -> 2022-01-03T10:45:00 | Q34: =IF(L34=0,"Bitte prüfen","") ->  | R34: =IF(J34/I34<0.5,"Bitte prüfen","") ->  | S34: =IF(J34/I34>2.5,"Bitte prüfen","") ->  | T34: =IF(K34<0,"Bitte prüfen",IF(K34>1.5,"Bitte prüfen","")) -> 
A36: =MAX(A32:A35)+1 -> 14 | B36: Verbauträger kürzen Seite 2 | C36: 03.06.01.02 | E36: 3 | F36: St | G36: 2 | H36: St/h | I36: =E36/G36*I$1 -> 0.0625 | J36: 0.0625 | K36: 1 | L36: =IF(K36=100%,L34,IF(K36>0%,M34-J34*K36,M34)) -> 2022-01-03T09:15:00 | M36: =L36+J36 -> 2022-01-03T10:45:00 | Q36: =IF(L36=0,"Bitte prüfen","") ->  | R36: =IF(J36/I36<0.5,"Bitte prüfen","") ->  | S36: =IF(J36/I36>2.5,"Bitte prüfen","") ->  | T36: =IF(K36<0,"Bitte prüfen",IF(K36>1.5,"Bitte prüfen","")) -> 
A38: =MAX(A34:A37)+1 -> 15 | B38: Auflagerplatte aufschweißen Seite 1 | C38: 03.06.01.03 | E38: 3 | F38: St | G38: 1.25 | H38: St/h | I38: =E38/G38*I$1 -> 0.1 | J38: 0.1041666667 | K38: 0 | L38: =IF(K38=100%,L36,IF(K38>0%,M36-J36*K38,M36)) -> 2022-01-03T10:45:00 | M38: =L38+J38 -> 2022-01-03T13:15:00 | Q38: =IF(L38=0,"Bitte prüfen","") ->  | R38: =IF(J38/I38<0.5,"Bitte prüfen","") ->  | S38: =IF(J38/I38>2.5,"Bitte prüfen","") ->  | T38: =IF(K38<0,"Bitte prüfen",IF(K38>1.5,"Bitte prüfen","")) -> 
A40: =MAX(A36:A39)+1 -> 16 | B40: Auflagerplatte aufschweißen Seite 2 | C40: 03.06.01.03 | E40: 3 | F40: St | G40: 1.25 | H40: St/h | I40: =E40/G40*I$1 -> 0.1 | J40: 0.1041666667 | K40: 1 | L40: =IF(K40=100%,L38,IF(K40>0%,M38-J38*K40,M38)) -> 2022-01-03T10:45:00 | M40: =L40+J40 -> 2022-01-03T13:15:00 | Q40: =IF(L40=0,"Bitte prüfen","") ->  | R40: =IF(J40/I40<0.5,"Bitte prüfen","") ->  | S40: =IF(J40/I40>2.5,"Bitte prüfen","") ->  | T40: =IF(K40<0,"Bitte prüfen",IF(K40>1.5,"Bitte prüfen","")) -> 
A42: =MAX(A38:A41)+1 -> 17 | B42: Auflagerträger aufsetzen und anschweißen Seite 1 | C42: 03.06.01.04 | E42: 1 | F42: St | G42: 0.67 | H42: St/h | I42: =E42/G42*I$1 -> 0.06218905473 | J42: 0.0625 | K42: 0 | L42: =IF(K42=100%,L40,IF(K42>0%,M40-J40*K42,M40)) -> 2022-01-03T13:15:00 | M42: =L42+J42 -> 2022-01-03T14:45:00 | Q42: =IF(L42=0,"Bitte prüfen","") ->  | R42: =IF(J42/I42<0.5,"Bitte prüfen","") ->  | S42: =IF(J42/I42>2.5,"Bitte prüfen","") ->  | T42: =IF(K42<0,"Bitte prüfen",IF(K42>1.5,"Bitte prüfen","")) -> 
A44: =MAX(A40:A43)+1 -> 18 | B44: Auflagerträger aufsetzen und anschweißen Seite 2 | C44: 03.06.01.04 | E44: 1 | F44: St | G44: 0.67 | H44: St/h | I44: =E44/G44*I$1 -> 0.06218905473 | J44: 0.0625 | K44: 1 | L44: =IF(K44=100%,L42,IF(K44>0%,M42-J42*K44,M42)) -> 2022-01-03T13:15:00 | M44: =L44+J44 -> 2022-01-03T14:45:00 | Q44: =IF(L44=0,"Bitte prüfen","") ->  | R44: =IF(J44/I44<0.5,"Bitte prüfen","") ->  | S44: =IF(J44/I44>2.5,"Bitte prüfen","") ->  | T44: =IF(K44<0,"Bitte prüfen",IF(K44>1.5,"Bitte prüfen","")) -> 
A46: =MAX(A44:A45)+1 -> 19 | B46: Lager einbauen, Auflager Seite 1 | C46: 03.06.01.05 | E46: 2 | F46: St | G46: 0.5 | H46: St/h | I46: =E46/G46*I$1 -> 0.1666666667 | J46: 0.1666666667 | K46: 0 | L46: =IF(K46=100%,L44,IF(K46>0%,M44-J44*K46,M44)) -> 2022-01-03T14:45:00 | M46: =L46+J46 -> 2022-01-03T18:45:00 | Q46: =IF(L46=0,"Bitte prüfen","") ->  | R46: =IF(J46/I46<0.5,"Bitte prüfen","") ->  | S46: =IF(J46/I46>2.5,"Bitte prüfen","") ->  | T46: =IF(K46<0,"Bitte prüfen",IF(K46>1.5,"Bitte prüfen","")) -> 
A48: =MAX(A44:A47)+1 -> 20 | B48: Lager einbauen, Auflager Seite 2 | C48: 03.06.01.05 | E48: 2 | F48: St | G48: 0.5 | H48: St/h | I48: =E48/G48*I$1 -> 0.1666666667 | J48: 0.1666666667 | K48: 1 | L48: =IF(K48=100%,L46,IF(K48>0%,M46-J46*K48,M46)) -> 2022-01-03T14:45:00 | M48: =L48+J48 -> 2022-01-03T18:45:00 | Q48: =IF(L48=0,"Bitte prüfen","") ->  | R48: =IF(J48/I48<0.5,"Bitte prüfen","") ->  | S48: =IF(J48/I48>2.5,"Bitte prüfen","") ->  | T48: =IF(K48<0,"Bitte prüfen",IF(K48>1.5,"Bitte prüfen","")) -> 
A50: =MAX(A46:A49)+1 -> 21 | B50: Hilfsbrücke auflegen | C50: 03.06.03.01 | E50: 1 | F50: St | G50: 0.75 | H50: St/h | I50: =E50/G50*I$1 -> 0.05555555556 | J50: 0.0625 | K50: 0 | L50: =IF(K50=100%,L48,IF(K50>0%,M48-J48*K50,M48)) -> 2022-01-03T18:45:00 | M50: =L50+J50 -> 2022-01-03T20:15:00 | Q50: =IF(L50=0,"Bitte prüfen","") ->  | R50: =IF(J50/I50<0.5,"Bitte prüfen","") ->  | S50: =IF(J50/I50>2.5,"Bitte prüfen","") ->  | T50: =IF(K50<0,"Bitte prüfen",IF(K50>1.5,"Bitte prüfen","")) -> 
A52: =MAX(A48:A51)+1 -> 22 | B52: Auflagerknaggen für Druckträger anschweißen | C52: 03.03.07.04 | D52: Bei statischem Erfordernis! | E52: 4 | F52: St | G52: 0.5 | H52: St/h | I52: =E52/G52*I$1 -> 0.3333333333 | J52: 0.08333333333 | K52: 0.5 | L52: =IF(K52=100%,L50,IF(K52>0%,M50-J50*K52,M50)) -> 2022-01-03T19:30:00 | M52: =L52+J52 -> 2022-01-03T21:30:00 | Q52: =IF(L52=0,"Bitte prüfen","") ->  | R52: =IF(J52/I52<0.5,"Bitte prüfen","") -> Bitte prüfen | S52: =IF(J52/I52>2.5,"Bitte prüfen","") ->  | T52: =IF(K52<0,"Bitte prüfen",IF(K52>1.5,"Bitte prüfen","")) -> 
D53: 4 Schweißer parallel und 1 ZWB je Seite am Arbeiten
A54: =MAX(A50:A53)+1 -> 23 | B54: Druckträger für Aussteifungsrahmen einheben und auf die Knaggen setzen (keine Sperrung erf.) | C54: 03.03.07.05 | D54: Bei statischem Erfordernis! | E54: 2 | F54: St | G54: 1 | H54: St/h | I54: =E54/G54*I$1 -> 0.08333333333 | J54: 0.08333333333 | K54: 0 | L54: =IF(K54=100%,L52,IF(K54>0%,M52-J52*K54,M52)) -> 2022-01-03T21:30:00 | M54: =L54+J54 -> 2022-01-03T23:30:00 | Q54: =IF(L54=0,"Bitte prüfen","") ->  | R54: =IF(J54/I54<0.5,"Bitte prüfen","") ->  | S54: =IF(J54/I54>2.5,"Bitte prüfen","") ->  | T54: =IF(K54<0,"Bitte prüfen",IF(K54>1.5,"Bitte prüfen","")) -> 
H55: Dauer Einheben je Träger mit Autokran: 1,0 h
A56: =MAX(A52:A55)+1 -> 24 | B56: Druckträgerauflager verschweißen | C56: 03.03.07.06 | D56: Bei statischem Erfordernis! 2 Träger mit 4 Schweißungen | E56: 4 | F56: St | G56: 0.5 | H56: St/h | I56: =E56/G56*I$1 -> 0.3333333333 | J56: 0.08333333333 | K56: 0.75 | L56: =IF(K56=100%,L54,IF(K56>0%,M54-J54*K56,M54)) -> 2022-01-03T22:00:00 | M56: =L56+J56 -> 2022-01-04 | O56: 3 | Q56: =IF(L56=0,"Bitte prüfen","") ->  | R56: =IF(J56/I56<0.5,"Bitte prüfen","") -> Bitte prüfen | S56: =IF(J56/I56>2.5,"Bitte prüfen","") ->  | T56: =IF(K56<0,"Bitte prüfen",IF(K56>1.5,"Bitte prüfen","")) -> 
D57: 4 Schweißer parallel am Arbeiten | H57: 4 Schweißer
A58: =MAX(A54:A57)+1 -> 25 | B58: Randweg auf der Hilfsbrücke einbauen (einseitig) | C58: 03.06.03.02 | D58: einseitiger Randweg: Rungen ausklappen | E58: 20 | F58: m | G58: 10 | H58: m/h | I58: =E58/G58*I$1 -> 0.08333333333 | J58: 0.08333333333 | K58: 1 | L58: =IF(K58=100%,L56,IF(K58>0%,M56-J56*K58,M56)) -> 2022-01-03T22:00:00 | M58: =L58+J58 -> 2022-01-04 | Q58: =IF(L58=0,"Bitte prüfen","") ->  | R58: =IF(J58/I58<0.5,"Bitte prüfen","") ->  | S58: =IF(J58/I58>2.5,"Bitte prüfen","") ->  | T58: =IF(K58<0,"Bitte prüfen",IF(K58>1.5,"Bitte prüfen","")) -> 
A60: =MAX(A56:A59)+1 -> 26 | B60: Verbaubleche (Schotterhalterung) ergänzen Seite 1 | C60: 03.06.04.01 | D60: ggf. mit anderen Gewerken parallel | E60: 1 | F60: St | G60: 1.2 | H60: St/h | I60: =E60/G60*I$1 -> 0.03472222222 | J60: 0.03125 | K60: 0 | L60: =IF(K60=100%,L58,IF(K60>0%,M58-J58*K60,M58)) -> 2022-01-04 | M60: =L60+J60 -> 2022-01-04T00:45:00 | Q60: =IF(L60=0,"Bitte prüfen","") ->  | R60: =IF(J60/I60<0.5,"Bitte prüfen","") ->  | S60: =IF(J60/I60>2.5,"Bitte prüfen","") ->  | T60: =IF(K60<0,"Bitte prüfen",IF(K60>1.5,"Bitte prüfen","")) -> 
A62: =MAX(A58:A61)+1 -> 27 | B62: Verbaubleche (Schotterhalterung) ergänzen Seite 2 | C62: 03.06.04.01 | E62: 1 | F62: St | G62: 1.2 | H62: St/h | I62: =E62/G62*I$1 -> 0.03472222222 | J62: 0.03125 | K62: 1 | L62: =IF(K62=100%,L60,IF(K62>0%,M60-J60*K62,M60)) -> 2022-01-04 | M62: =L62+J62 -> 2022-01-04T00:45:00 | Q62: =IF(L62=0,"Bitte prüfen","") ->  | R62: =IF(J62/I62<0.5,"Bitte prüfen","") ->  | S62: =IF(J62/I62>2.5,"Bitte prüfen","") ->  | T62: =IF(K62<0,"Bitte prüfen",IF(K62>1.5,"Bitte prüfen","")) -> 
A64: =MAX(A60:A63)+1 -> 28 | B64: Kopfloch verfüllen und verdichten Seite 1 | C64: 03.06.04.02 | E64: 1 | F64: St | G64: 1.2 | H64: St/h | I64: =E64/G64*I$1 -> 0.03472222222 | J64: 0.03125 | K64: 0 | L64: =IF(K64=100%,L62,IF(K64>0%,M62-J62*K64,M62)) -> 2022-01-04T00:45:00 | M64: =L64+J64 -> 2022-01-04T01:30:00 | Q64: =IF(L64=0,"Bitte prüfen","") ->  | R64: =IF(J64/I64<0.5,"Bitte prüfen","") ->  | S64: =IF(J64/I64>2.5,"Bitte prüfen","") ->  | T64: =IF(K64<0,"Bitte prüfen",IF(K64>1.5,"Bitte prüfen","")) -> 
A66: =MAX(A62:A65)+1 -> 29 | B66: Kopfloch verfüllen und verdichtenSeite 2 | C66: 03.06.04.02 | E66: 1 | F66: St | G66: 1.2 | H66: St/h | I66: =E66/G66*I$1 -> 0.03472222222 | J66: 0.03125 | K66: 1 | L66: =IF(K66=100%,L64,IF(K66>0%,M64-J64*K66,M64)) -> 2022-01-04T00:45:00 | M66: =L66+J66 -> 2022-01-04T01:30:00 | Q66: =IF(L66=0,"Bitte prüfen","") ->  | R66: =IF(J66/I66<0.5,"Bitte prüfen","") ->  | S66: =IF(J66/I66>2.5,"Bitte prüfen","") ->  | T66: =IF(K66<0,"Bitte prüfen",IF(K66>1.5,"Bitte prüfen","")) -> 
A68: =MAX(A64:A67)+1 -> 30 | B68: Grundschotter einbauen Seite 1 | C68: 02.02.04.04 | D68: z.B. vom Lkw oder Flachwagen mit klappbaren Seitenborden vor Kopf | E68: 15 | F68: m3 | G68: 30 | H68: m3/h | I68: =E68/G68*I$1 -> 0.02083333333 | J68: 0.02083333333 | K68: 0 | L68: =IF(K68=100%,L66,IF(K68>0%,M66-J66*K68,M66)) -> 2022-01-04T01:30:00 | M68: =L68+J68 -> 2022-01-04T02:00:00 | Q68: =IF(L68=0,"Bitte prüfen","") ->  | R68: =IF(J68/I68<0.5,"Bitte prüfen","") ->  | S68: =IF(J68/I68>2.5,"Bitte prüfen","") ->  | T68: =IF(K68<0,"Bitte prüfen",IF(K68>1.5,"Bitte prüfen","")) -> 
A70: =MAX(A66:A69)+1 -> 31 | B70: Grundschotter einbauen Seite 2 | C70: 02.02.04.04 | E70: 15 | F70: m3 | G70: 30 | H70: m3/h | I70: =E70/G70*I$1 -> 0.02083333333 | J70: 0.02083333333 | K70: 1 | L70: =IF(K70=100%,L68,IF(K70>0%,M68-J68*K70,M68)) -> 2022-01-04T01:30:00 | M70: =L70+J70 -> 2022-01-04T02:00:00 | Q70: =IF(L70=0,"Bitte prüfen","") ->  | R70: =IF(J70/I70<0.5,"Bitte prüfen","") ->  | S70: =IF(J70/I70>2.5,"Bitte prüfen","") ->  | T70: =IF(K70<0,"Bitte prüfen",IF(K70>1.5,"Bitte prüfen","")) -> 
A72: =MAX(A68:A71)+1 -> 32 | B72: Schwellen auslegen Seite 1 | C72: 02.02.06.01 | D72: 6 Schwellen je Seite | E72: 6 | F72: St | G72: 25 | H72: St/h | I72: =E72/G72*I$1 -> 0.01 | J72: 0.01041666667 | K72: 0 | L72: =IF(K72=100%,L70,IF(K72>0%,M70-J70*K72,M70)) -> 2022-01-04T02:00:00 | M72: =L72+J72 -> 2022-01-04T02:15:00 | Q72: =IF(L72=0,"Bitte prüfen","") ->  | R72: =IF(J72/I72<0.5,"Bitte prüfen","") ->  | S72: =IF(J72/I72>2.5,"Bitte prüfen","") ->  | T72: =IF(K72<0,"Bitte prüfen",IF(K72>1.5,"Bitte prüfen","")) -> 
D73: Holzschwellen empfohlen wegen Elastizität
A74: =MAX(A70:A73)+1 -> 33 | B74: Schwellen auslegen Seite 2 | C74: 02.02.06.01 | D74: 6 Schwellen je Seite | E74: 6 | F74: St | G74: 25 | H74: St/h | I74: =E74/G74*I$1 -> 0.01 | J74: 0.01041666667 | K74: 1 | L74: =IF(K74=100%,L72,IF(K74>0%,M72-J72*K74,M72)) -> 2022-01-04T02:00:00 | M74: =L74+J74 -> 2022-01-04T02:15:00 | Q74: =IF(L74=0,"Bitte prüfen","") ->  | R74: =IF(J74/I74<0.5,"Bitte prüfen","") ->  | S74: =IF(J74/I74>2.5,"Bitte prüfen","") ->  | T74: =IF(K74<0,"Bitte prüfen",IF(K74>1.5,"Bitte prüfen","")) -> 
D75: Holzschwellen empfohlen wegen Elastizität
A76: =MAX(A72:A75)+1 -> 34 | B76: Schienen verziehen, auflegen und verspannen | C76: 02.02.06.03 | D76: für Kleinstmenge halben Wert ansetzen | E76: 60 | F76: m | G76: 120 | H76: m/h | I76: =E76/G76*I$1 -> 0.02083333333 | J76: 0.02083333333 | K76: 0 | L76: =IF(K76=100%,L74,IF(K76>0%,M74-J74*K76,M74)) -> 2022-01-04T02:15:00 | M76: =L76+J76 -> 2022-01-04T02:45:00 | Q76: =IF(L76=0,"Bitte prüfen","") ->  | R76: =IF(J76/I76<0.5,"Bitte prüfen","") ->  | S76: =IF(J76/I76>2.5,"Bitte prüfen","") ->  | T76: =IF(K76<0,"Bitte prüfen",IF(K76>1.5,"Bitte prüfen","")) -> 
A78: =MAX(A74:A77)+1 -> 35 | B78: Füllschotter einbauen mit offenem Schüttgutwagen mit dosierbarer Schwerkraftentladung (z.B. Fc-Wagen) | C78: 02.04.02.01 | D78: Anrampung 15 mm über geplanter Gleislage wegen Setzung | E78: 40 | F78: m | G78: 44 | H78: m/h | I78: =E78/G78*I$1 -> 0.03787878788 | J78: 0.04166666667 | K78: 0 | L78: =IF(K78=100%,L76,IF(K78>0%,M76-J76*K78,M76)) -> 2022-01-04T02:45:00 | M78: =L78+J78 -> 2022-01-04T03:45:00 | Q78: =IF(L78=0,"Bitte prüfen","") ->  | R78: =IF(J78/I78<0.5,"Bitte prüfen","") ->  | S78: =IF(J78/I78>2.5,"Bitte prüfen","") ->  | T78: =IF(K78<0,"Bitte prüfen",IF(K78>1.5,"Bitte prüfen","")) -> 
A80: =MAX(A76:A79)+1 -> 36 | B80: Gleis stopfen (1. Stabilisierung) maschinell) | C80: 02.04.02.02 | E80: 30 | F80: m | G80: 70 | H80: m/h | I80: =E80/G80*I$1 -> 0.01785714286 | J80: 0.02083333333 | K80: 0 | L80: =IF(K80=100%,L78,IF(K80>0%,M78-J78*K80,M78)) -> 2022-01-04T03:45:00 | M80: =L80+J80 -> 2022-01-04T04:15:00 | Q80: =IF(L80=0,"Bitte prüfen","") ->  | R80: =IF(J80/I80<0.5,"Bitte prüfen","") ->  | S80: =IF(J80/I80>2.5,"Bitte prüfen","") ->  | T80: =IF(K80<0,"Bitte prüfen",IF(K80>1.5,"Bitte prüfen","")) -> 
A82: =MAX(A78:A81)+1 -> 37 | B82: Gleis stopfen (2. Stabilisierung) maschinell) | C82: 02.04.02.03 | E82: 50 | F82: m | G82: 90 | H82: m/h | I82: =E82/G82*I$1 -> 0.02314814815 | J82: 0.02083333333 | K82: 0 | L82: =IF(K82=100%,L80,IF(K82>0%,M80-J80*K82,M80)) -> 2022-01-04T04:15:00 | M82: =L82+J82 -> 2022-01-04T04:45:00 | Q82: =IF(L82=0,"Bitte prüfen","") ->  | R82: =IF(J82/I82<0.5,"Bitte prüfen","") ->  | S82: =IF(J82/I82>2.5,"Bitte prüfen","") ->  | T82: =IF(K82<0,"Bitte prüfen",IF(K82>1.5,"Bitte prüfen","")) -> 
A84: =MAX(A80:A83)+1 -> 38 | B84: aluminotherm. Schweißen (Skv) 24-26 mm Lückenweite für alle Profile | C84: 02.01.02.01 | D84: Annahme 4 Schweißungen (1 Trupp) | E84: 4 | F84: St | G84: 2 | H84: St/h | I84: =E84/G84*I$1 -> 0.08333333333 | J84: 0.08333333333 | K84: 0 | L84: =IF(K84=100%,L82,IF(K84>0%,M82-J82*K84,M82)) -> 2022-01-04T04:45:00 | M84: =L84+J84 -> 2022-01-04T06:45:00 | Q84: =IF(L84=0,"Bitte prüfen","") ->  | R84: =IF(J84/I84<0.5,"Bitte prüfen","") ->  | S84: =IF(J84/I84>2.5,"Bitte prüfen","") ->  | T84: =IF(K84<0,"Bitte prüfen",IF(K84>1.5,"Bitte prüfen","")) -> 
A86: 39 | B86: Feinschliff | C86: 02.01.02.06 | D86: 1 Trupp | E86: 4 | F86: St | G86: 4 | H86: St/h | I86: =E86/G86*I$1 -> 0.04166666667 | J86: 0.04166666667 | K86: 0 | L86: =IF(K86=100%,L84,IF(K86>0%,M84-J84*K86,M84)) -> 2022-01-04T06:45:00 | M86: =L86+J86 -> 2022-01-04T07:45:00
A88: =MAX(A84:A87)+1 -> 40 | B88: Spannungsausgleich ohne Schlussschweißung herstellen | C88: 02.01.03.03 | D88: 2x 150 m Spannungsausgleich (2x Wärmeröhren / 2 Trupps) | E88: 300 | F88: m | G88: 115 | H88: m/h | I88: =E88/G88*I$1 -> 0.1086956522 | J88: 0.1041666667 | K88: 0.5 | L88: =IF(K88=100%,L84,IF(K88>0%,M84-J84*K88,M84)) -> 2022-01-04T05:45:00 | M88: =L88+J88 -> 2022-01-04T08:15:00 | Q88: =IF(L88=0,"Bitte prüfen","") ->  | R88: =IF(J88/I88<0.5,"Bitte prüfen","") ->  | S88: =IF(J88/I88>2.5,"Bitte prüfen","") ->  | T88: =IF(K88<0,"Bitte prüfen",IF(K88>1.5,"Bitte prüfen","")) -> 
A90: =MAX(A84:A89)+1 -> 41 | B90: Gleisschaltmittel (Achszähler, PZB, Linienleiter, Balisen etc.) anbauen | C90: 07.01.03.01.01 | D90: abhängig vom Umfang LST, Einbindung Fachplanung erforderlich | E90: 2 | F90: St | G90: 3 | H90: St/h | I90: =E90/G90*I$1 -> 0.02777777778 | J90: 0.04166666667 | K90: 0 | L90: =IF(K90=100%,L88,IF(K90>0%,M88-J88*K90,M88)) -> 2022-01-04T08:15:00 | M90: =L90+J90 -> 2022-01-04T09:15:00 | Q90: =IF(L90=0,"Bitte prüfen","") ->  | R90: =IF(J90/I90<0.5,"Bitte prüfen","") ->  | S90: =IF(J90/I90>2.5,"Bitte prüfen","") ->  | T90: =IF(K90<0,"Bitte prüfen",IF(K90>1.5,"Bitte prüfen","")) -> 
F91: Annahme getroffen
A92: 42 | B92: Erdungseinrichtungen (Schienen-, Gleisverbinder, Betriebserden etc.) anbauen einschl. Hilfsbrücke erden | C92: 06.08.01.01 | E92: 2 | F92: St | G92: 4 | H92: St/h | I92: =E92/G92*I$1 -> 0.02083333333 | J92: 0.02083333333 | K92: 0 | L92: =M90 -> 2022-01-04T09:15:00 | M92: =L92+J92*(1-K92) -> 2022-01-04T09:45:00 | Q92: =IF(L92=0,"Bitte prüfen","") ->  | R92: =IF(J92/I92<0.5,"Bitte prüfen","") ->  | S92: =IF(J92/I92>2.5,"Bitte prüfen","") ->  | T92: =IF(K92<0,"Bitte prüfen",IF(K92>1.5,"Bitte prüfen","")) -> 
F93: Annahme getroffen
A94: 43 | B94: OLA zurückschwenken | C94: 06.01.01.01 | E94: 90 | F94: m | G94: 60 | H94: m/h | I94: =E94/G94*I$1 -> 0.0625 | J94: 0.0625 | K94: 0 | L94: =IF(K94=100%,L92,IF(K94>0%,M92-J92*K94,M92)) -> 2022-01-04T09:45:00 | M94: =L94+J94 -> 2022-01-04T11:15:00 | Q94: =IF(L94=0,"Bitte prüfen","") ->  | R94: =IF(J94/I94<0.5,"Bitte prüfen","") ->  | S94: =IF(J94/I94>2.5,"Bitte prüfen","") ->  | T94: =IF(K94<0,"Bitte prüfen",IF(K94>1.5,"Bitte prüfen","")) -> 
A96: 44 | B96: ggf. Prüfung, ob Abnahmehandlungen (LST) notwendig sind | C96: 07.01.08.01 | D96: Achszähler | E96: 1 | F96: St | G96: 2 | H96: St/h | I96: =E96/G96*I$1 -> 0.02083333333 | J96: 0.02083333333 | K96: 0 | L96: =IF(K96=100%,L94,IF(K96>0%,M94-J94*K96,M94)) -> 2022-01-04T11:15:00 | M96: =L96+J96 -> 2022-01-04T11:45:00 | Q96: =IF(L96=0,"Bitte prüfen","") ->  | R96: =IF(J96/I96<0.5,"Bitte prüfen","") ->  | S96: =IF(J96/I96>2.5,"Bitte prüfen","") ->  | T96: =IF(K96<0,"Bitte prüfen",IF(K96>1.5,"Bitte prüfen","")) -> 
F97: Annahme getroffen
A98: 45 | B98: Prüf- und Belastungsfahrten durchführen | C98: 08.02.01.01 | D98: Eventualposition ggf. schon durch Fahrt mit Arbeitszug (Stopfmaschine) innerhalb der Sperrung möglich. | E98: 1 | F98: St | G98: 2 | H98: St/h | I98: =E98/G98*I$1 -> 0.02083333333 | J98: 0.02083333333 | K98: 0 | L98: =IF(K98=100%,L96,IF(K98>0%,M96-J96*K98,M96)) -> 2022-01-04T11:45:00 | M98: =L98+J98 -> 2022-01-04T12:15:00 | Q98: =IF(L98=0,"Bitte prüfen","") ->  | R98: =IF(J98/I98<0.5,"Bitte prüfen","") ->  | S98: =IF(J98/I98>2.5,"Bitte prüfen","") ->  | T98: =IF(K98<0,"Bitte prüfen",IF(K98>1.5,"Bitte prüfen","")) -> 
A100: 46 | B100: ggf. Prüfung La-Einrichtung entsprechend VzG und Planung, ggf. Geschwindigkeitsüberwachung (GÜ - PZB-Magnete) für La auf HB | C100: 07.01.02.03 | D100: keine baulichen Veränderungen an der Anlage gegenüber dem Urzustand | E100: 6 | F100: St | G100: 4 | H100: St/h | I100: =E100/G100*I$1 -> 0.0625 | J100: 0.0625 | K100: 0.5 | L100: =IF(K100=100%,L98,IF(K100>0%,M98-J98*K100,M98)) -> 2022-01-04T12:00:00 | M100: =L100+J100 -> 2022-01-04T13:30:00 | Q100: =IF(L100=0,"Bitte prüfen","") ->  | R100: =IF(J100/I100<0.5,"Bitte prüfen","") ->  | S100: =IF(J100/I100>2.5,"Bitte prüfen","") ->  | T100: =IF(K100<0,"Bitte prüfen",IF(K100>1.5,"Bitte prüfen","")) -> 
A102: 47 | B102: Erdungsvorrichtung ausbauen und Oberleitung einschalten (1 Schaltgruppe) | C102: 08.01.02.02 | E102: 2 | F102: psch | G102: 4 | H102: psch/h | I102: =E102/G102*I$1 -> 0.02083333333 | J102: 0.02083333333 | K102: 0.5 | L102: =IF(K102=100%,L100,IF(K102>0%,M100-J100*K102,M100)) -> 2022-01-04T12:45:00 | M102: =L102+J102 -> 2022-01-04T13:15:00 | Q102: =IF(L102=0,"Bitte prüfen","") ->  | R102: =IF(J102/I102<0.5,"Bitte prüfen","") ->  | S102: =IF(J102/I102>2.5,"Bitte prüfen","") ->  | T102: =IF(K102<0,"Bitte prüfen",IF(K102>1.5,"Bitte prüfen","")) -> 
A104: 48 | B104: Sperrung aufheben | C104: 08.01.01.02 | E104: 1 | F104: psch | G104: 2 | H104: psch/h | I104: =E104/G104*I$1 -> 0.02083333333 | J104: 0.02083333333 | K104: 0 | L104: =IF(K104=100%,L102,IF(K104>0%,M102-J102*K104,M102)) -> 2022-01-04T13:15:00 | M104: =L104+J104 -> 2022-01-04T13:45:00 | Q104: =IF(L104=0,"Bitte prüfen","") ->  | R104: =IF(J104/I104<0.5,"Bitte prüfen","") ->  | S104: =IF(J104/I104>2.5,"Bitte prüfen","") ->  | T104: =IF(K104<0,"Bitte prüfen",IF(K104>1.5,"Bitte prüfen","")) -> 
A106: 49 | B106: Nacharbeiten festlegen (Hilfsbrückenübergänge stopfen) | D106: ca. alle 8 Wochen, je nach Belastung zu berücksichtigen | Q106: =IF(L106=0,"Bitte prüfen","") -> Bitte prüfen | R106: =IF(J106/I106<0.5,"Bitte prüfen","") ->  | S106: =IF(J106/I106>2.5,"Bitte prüfen","") ->  | T106: =IF(K106<0,"Bitte prüfen",IF(K106>1.5,"Bitte prüfen","")) -> 
D107: ggf. Messeinrichtung Lageüberwachung bei Hilfsbrücken in Bögen oder Hilfsbrückenkette | O107: =M104-L1 -> 1.614583333

Sheet Ausbau HB
A1: Projekt | B1: Ausbau Hilfsbrücke und Einschub vorgefertigter Überbau | H1: Uhrzeit-berechnung: | I1: 01:00:00 | J1: Start (Datum/Uhrzeit) eingeben: | L1: 2022-01-02T23:00:00
A2: Vor-gangs- Nr. | B2: Vorgangsbezeichnung | C2: Position Katalog | D2: Hinweise/Bemerkungen | E2: Leistungs-menge | F2: Einheit Leistungs-menge Erläuterung | G2: Leistungs-wert Katalog | H2: Einheit Leistungswert Erläuterung | I2: Dauer (rechn.) | J2: Dauer (gewählt) | K2: Para-llelität in % | L2: Beginn | M2: Ende | N2: Bemerkung | O2: Tag-wechsel | Q2: Prüfung Anfangszeit | R2: Prüfung Dauer gewählt zu klein | S2: Prüfung Dauer gewählt zu groß | T2: Prüfung Parallelität
A3: 1 | B3: 2 | C3: 3 | D3: 4 | E3: 5 | F3: 6 | G3: 7 | H3: 8 | I3: 9 | J3: 10 | K3: 11 | L3: 12 | M3: 13 | N3: 14 | O3: 15 | Q3: 16 | R3: 17 | S3: 18 | T3: 19
A4: 0 | B4: Vorbereitende Maßnahmen definieren, z.B. Vorbereiten Verschubbahn im Baufeld bis vor HB | D4: Im Vorfeld in einer gesonderten (Gleis-)Sperrung zu realisieren. | O4: 0 | Q4: =IF(L4=0,"Bitte prüfen","") -> Bitte prüfen | R4: =IF(J4/I4<0.5,"Bitte prüfen","") ->  | S4: =IF(J4/I4>2.5,"Bitte prüfen","") ->  | T4: =IF(K4<0,"Bitte prüfen",IF(K4>1.5,"Bitte prüfen","")) -> 
A6: =MAX(A4:A5)+1 -> 1 | B6: Sperrung einrichten | C6: 08.01.01.01 | D6: Regelungen Betra beachten | E6: 1 | F6: psch | G6: 2 | H6: psch/h | I6: =E6/G6*I$1 -> 0.02083333333 | J6: 0.02083333333 | K6: 0 | L6: =L1 -> 2022-01-02T23:00:00 | M6: =L6+J6 -> 2022-01-02T23:30:00 | O6: 1 | Q6: =IF(L6=0,"Bitte prüfen","") ->  | R6: =IF(J6/I6<0.5,"Bitte prüfen","") ->  | S6: =IF(J6/I6>2.5,"Bitte prüfen","") ->  | T6: =IF(K6<0,"Bitte prüfen",IF(K6>1.5,"Bitte prüfen","")) -> 
A8: =MAX(A4:A7)+1 -> 2 | B8: Oberleitung abschalten und Erdungs-vorrichtung einbauen (1 Schaltgruppe) | C8: 08.01.02.01 | E8: 2 | F8: psch | G8: 4 | H8: psch/h | I8: =E8/G8*I$1 -> 0.02083333333 | J8: 0.02083333333 | K8: 0.5 | L8: =IF(K8=100%,L6,IF(K8>0%,M6-J6*K8,M6)) -> 2022-01-02T23:15:00 | M8: =L8+J8 -> 2022-01-02T23:45:00 | Q8: =IF(L8=0,"Bitte prüfen","") ->  | R8: =IF(J8/I8<0.5,"Bitte prüfen","") ->  | S8: =IF(J8/I8>2.5,"Bitte prüfen","") ->  | T8: =IF(K8<0,"Bitte prüfen",IF(K8>1.5,"Bitte prüfen","")) -> 
D9: Teilparallelität zu Vorgang Nr. 1
A10: =MAX(A6:A9)+1 -> 3 | B10: Gleisschaltmittel (Achszähler, PZB, Linienleiter, Balisen etc.) abbauen | C10: 07.01.02.02/ 07.01.02.05/ 07.01.03.02 | D10: kann ggf. zu Bahnerdung parallel laufen (kein ZWB - nur Personal) | E10: 3 | F10: St | G10: 3 | H10: psch/h | I10: =E10/G10*I$1 -> 0.04166666667 | J10: 0.04166666667 | K10: 1 | L10: =IF(K10=100%,L8,IF(K10>0%,M8-J8*K10,M8)) -> 2022-01-02T23:15:00 | M10: =L10+J10 -> 2022-01-03T00:15:00 | O10: 2 | Q10: =IF(L10=0,"Bitte prüfen","") ->  | R10: =IF(J10/I10<0.5,"Bitte prüfen","") ->  | S10: =IF(J10/I10>2.5,"Bitte prüfen","") ->  | T10: =IF(K10<0,"Bitte prüfen",IF(K10>1.5,"Bitte prüfen","")) -> 
D11: Der Vorgang kann frühestens parallel zu Vorgang 2 beginnen | F11: Annahme getroffen
A12: =MAX(A8:A11)+1 -> 4 | B12: Erdungseinrichtungen (Schienen-, Gleisverbinder, Betriebserden etc.) abbauen | C12: 06.08.02.03 | D12: absolute Parallelität zu Vorgang Nr. 3, jedoch muss der Vorgang Nr. 2 vorher abgeschlossen sein. | E12: 2 | F12: St | G12: 4 | H12: St/h | I12: =E12/G12*I$1 -> 0.02083333333 | J12: 0.02083333333 | K12: 1 | L12: 2022-01-02T23:45:00 | M12: =L12+J12 -> 2022-01-03T00:15:00 | N12: Beginnzeit händisch gesetzt, da Vorgang 2 abgeschlossen sein muss. | Q12: =IF(L12=0,"Bitte prüfen","") ->  | R12: =IF(J12/I12<0.5,"Bitte prüfen","") ->  | S12: =IF(J12/I12>2.5,"Bitte prüfen","") ->  | T12: =IF(K12<0,"Bitte prüfen",IF(K12>1.5,"Bitte prüfen","")) -> 
H13: Leistungsmenge stark abhängig von der Lage des Bauwerks
A14: =MAX(A10:A13)+1 -> 5 | B14: Rückstromführung montieren | C14: 06.08.01.07 | D14: Rücksprache mit Fachplaner, ob die Leistung erforderlich ist! | E14: 2 | F14: St | G14: 1 | H14: St/h | I14: =E14/G14*I$1 -> 0.08333333333 | J14: 0.08333333333 | K14: 0.5 | L14: =IF(K14=100%,L12,IF(K14>0%,M12-J12*K14,M12)) -> 2022-01-03 | M14: =L14+J14 -> 2022-01-03T02:00:00 | Q14: =IF(L14=0,"Bitte prüfen","") ->  | R14: =IF(J14/I14<0.5,"Bitte prüfen","") ->  | S14: =IF(J14/I14>2.5,"Bitte prüfen","") ->  | T14: =IF(K14<0,"Bitte prüfen",IF(K14>1.5,"Bitte prüfen","")) -> 
D15: Teilparallelität zu Vorgang Nr. 4
A16: =MAX(A14:A15)+1 -> 6 | B16: OLA aus-/verschwenken/verziehen | C16: 06.01.01.01 | D16: ca. 60 min freie Strecke, ca 120 min Bahnhof | E16: 90 | F16: m | G16: 60 | H16: m/h | I16: =E16/G16*I$1 -> 0.0625 | J16: 0.0625 | K16: 0 | L16: =IF(K16=100%,L14,IF(K16>0%,M14-J14*K16,M14)) -> 2022-01-03T02:00:00 | M16: =L16+J16 -> 2022-01-03T03:30:00 | Q16: =IF(L16=0,"Bitte prüfen","") ->  | R16: =IF(J16/I16<0.5,"Bitte prüfen","") ->  | S16: =IF(J16/I16>2.5,"Bitte prüfen","") ->  | T16: =IF(K16<0,"Bitte prüfen",IF(K16>1.5,"Bitte prüfen","")) -> 
D17: in der Regel 2 Kettenwerkslängen
A18: =MAX(A16:A17)+1 -> 7 | B18: Randweg auf der Hilfsbrücke (einseitig) ausbauen | C18: 03.06.05.04 | D18: einseitiger Randweg: Rungen umklappen | E18: 20 | F18: m | G18: 20 | H18: m/h | I18: =E18/G18*I$1 -> 0.04166666667 | J18: 0.04166666667 | K18: 0 | L18: =IF(K18=100%,L16,IF(K18>0%,M16-J16*K18,M16)) -> 2022-01-03T03:30:00 | M18: =L18+J18 -> 2022-01-03T04:30:00 | Q18: =IF(L18=0,"Bitte prüfen","") ->  | R18: =IF(J18/I18<0.5,"Bitte prüfen","") ->  | S18: =IF(J18/I18>2.5,"Bitte prüfen","") ->  | T18: =IF(K18<0,"Bitte prüfen",IF(K18>1.5,"Bitte prüfen","")) -> 
A20: =MAX(A16:A19)+1 -> 8 | B20: Schienen trennen/schneiden (Trennschnitt) | C20: 02.01.01.01 | D20: zur Wiederverwendung je 2 Schnitte recht, links | E20: 4 | F20: St | G20: 6 | H20: St/h | I20: =E20/G20*I$1 -> 0.02777777778 | J20: 0.03125 | K20: 0 | L20: =IF(K20=100%,L18,IF(K20>0%,M18-J18*K20,M18)) -> 2022-01-03T04:30:00 | M20: =L20+J20 -> 2022-01-03T05:15:00 | Q20: =IF(L20=0,"Bitte prüfen","") ->  | R20: =IF(J20/I20<0.5,"Bitte prüfen","") ->  | S20: =IF(J20/I20>2.5,"Bitte prüfen","") ->  | T20: =IF(K20<0,"Bitte prüfen",IF(K20>1.5,"Bitte prüfen","")) -> 
D21: Trennschnitte vor der Hilfsbrücke in Abhänigkeit von der Geschwindigkeit 3, 5 oder 10 m (Schwellenteilung)
A22: =MAX(A18:A21)+1 -> 9 | B22: Schienen lösen und verziehen | C22: 02.02.02.01 | D22: Schiene lösen mit Schrauber (2 Trupps á 2 Leute) | E22: 70 | F22: 2 x 30-40 m | G22: 150 | H22: m/h | I22: =E22/G22*I$1 -> 0.01944444444 | J22: 0.02083333333 | K22: 0 | L22: =IF(K22=100%,L20,IF(K22>0%,M20-J20*K22,M20)) -> 2022-01-03T05:15:00 | M22: =L22+J22 -> 2022-01-03T05:45:00 | Q22: =IF(L22=0,"Bitte prüfen","") ->  | R22: =IF(J22/I22<0.5,"Bitte prüfen","") ->  | S22: =IF(J22/I22>2.5,"Bitte prüfen","") ->  | T22: =IF(K22<0,"Bitte prüfen",IF(K22>1.5,"Bitte prüfen","")) -> 
F23: Schiene | H23: pro Schiene
A24: =MAX(A22:A23)+1 -> 10 | B24: Regelfall: Holzschwellen ausbauen, transportieren und lagern | C24: 02.02.01.01 | D24: 3 Stück am Haken (10-15 min); abhängig von Beton- oder Holzschwelle | E24: 40 | F24: 30 - 40 m | G24: 55 | H24: m/h | I24: =E24/G24*I$1 -> 0.0303030303 | J24: 0.03125 | K24: 0 | L24: =IF(K24=100%,L22,IF(K24>0%,M22-J22*K24,M22)) -> 2022-01-03T05:45:00 | M24: =L24+J24 -> 2022-01-03T06:30:00 | Q24: =IF(L24=0,"Bitte prüfen","") ->  | R24: =IF(J24/I24<0.5,"Bitte prüfen","") ->  | S24: =IF(J24/I24>2.5,"Bitte prüfen","") ->  | T24: =IF(K24<0,"Bitte prüfen",IF(K24>1.5,"Bitte prüfen","")) -> 
F25: Gleis | H25: Zwei 2-Wege-Bagger im Einsatz
A26: 10a | B26: Alternativ: Montageschiene aufschrauben | C26: 02.02.07.01 | E26: 40 | F26: 30 - 40 m | G26: 70 | H26: m/h | I26: =E26/G26*I$1 -> 0.02380952381 | J26: 0.02083333333 | K26: 1 | N26: Keine Zeiten eingetragen, da Alternative für Pos. 9 | Q26: =IF(L26=0,"Bitte prüfen","") -> Bitte prüfen | R26: =IF(J26/I26<0.5,"Bitte prüfen","") ->  | S26: =IF(J26/I26>2.5,"Bitte prüfen","") ->  | T26: =IF(K26<0,"Bitte prüfen",IF(K26>1.5,"Bitte prüfen","")) -> 
F27: Gleis
A28: 10b | B28: Alternativ: Jochweise (10 m) rausheben, transportieren und lagern | C28: 02.02.01.04 | D28: 6m Betonschwellen, 10m Holzschwellen | E28: 40 | F28: 30 - 40 m | G28: 60 | H28: m/h | I28: =E28/G28*I$1 -> 0.02777777778 | J28: 0.03125 | K28: 1 | N28: Keine Zeiten eingetragen, da Alternative für Pos. 9 | Q28: =IF(L28=0,"Bitte prüfen","") -> Bitte prüfen | R28: =IF(J28/I28<0.5,"Bitte prüfen","") ->  | S28: =IF(J28/I28>2.5,"Bitte prüfen","") ->  | T28: =IF(K28<0,"Bitte prüfen",IF(K28>1.5,"Bitte prüfen","")) -> 
F29: Gleis
A30: =MAX(A22:A29)+1 -> 11 | B30: Schotter ausbauen | C30: 02.02.03.06 | D30: hier als Beispiel Kleinstmengen Verladung auf Res-Wagen vor Kopf | E30: 80 | F30: 75 - 100 m3 | G30: 30 | H30: m/h | I30: =E30/G30*I$1 -> 0.1111111111 | J30: 0.125 | K30: 0 | L30: =IF(K30=100%,L24,IF(K30>0%,M24-J24*K30,M24)) -> 2022-01-03T06:30:00 | M30: =L30+J30 -> 2022-01-03T09:30:00 | Q30: =IF(L30=0,"Bitte prüfen","") ->  | R30: =IF(J30/I30<0.5,"Bitte prüfen","") ->  | S30: =IF(J30/I30>2.5,"Bitte prüfen","") ->  | T30: =IF(K30<0,"Bitte prüfen",IF(K30>1.5,"Bitte prüfen","")) -> 
D31: Beginn mit spätestem Ende der Vorgänge 10, 11, 12
A32: =MAX(A28:A31)+1 -> 12 | B32: Kopfloch freilegen Seite 1 | C32: 03.06.01.01 | D32: Verbau zum Nachbargleis in vorheriger Sperrpause in Verbindung mit Herstellung Gründung (Bohrpfahl oder HEB-Träger) paralleles Arbeiten an beiden Kopflöchern | E32: 1 | F32: St | G32: 2 | H32: St/h | I32: =E32/G32*I$1 -> 0.02083333333 | J32: 0.02083333333 | K32: 0 | L32: =IF(K32=100%,L30,IF(K32>0%,M30-J30*K32,M30)) -> 2022-01-03T09:30:00 | M32: =L32+J32 -> 2022-01-03T10:00:00 | Q32: =IF(L32=0,"Bitte prüfen","") ->  | R32: =IF(J32/I32<0.5,"Bitte prüfen","") ->  | S32: =IF(J32/I32>2.5,"Bitte prüfen","") ->  | T32: =IF(K32<0,"Bitte prüfen",IF(K32>1.5,"Bitte prüfen","")) -> 
A34: =MAX(A30:A33)+1 -> 13 | B34: Kopfloch freilegen Seite 2 | C34: 03.06.01.01 | E34: 1 | F34: St | G34: 2 | H34: St/h | I34: =E34/G34*I$1 -> 0.02083333333 | J34: 0.02083333333 | K34: 1 | L34: =IF(K34=100%,L32,IF(K34>0%,M32-J32*K34,M32)) -> 2022-01-03T09:30:00 | M34: =L34+J34 -> 2022-01-03T10:00:00 | Q34: =IF(L34=0,"Bitte prüfen","") ->  | R34: =IF(J34/I34<0.5,"Bitte prüfen","") ->  | S34: =IF(J34/I34>2.5,"Bitte prüfen","") ->  | T34: =IF(K34<0,"Bitte prüfen",IF(K34>1.5,"Bitte prüfen","")) -> 
A36: =MAX(A32:A35)+1 -> 14 | B36: Hilfsbrücke ausheben | C36: 03.06.05.01 | D36: vor der Sperrpause Rückbau der Ausbohlung zwischen den Hauptträgern von unten | E36: 1 | F36: St | G36: 1 | H36: St/h | I36: =E36/G36*I$1 -> 0.04166666667 | J36: 0.04166666667 | K36: 0 | L36: =IF(K36=100%,L34,IF(K36>0%,M34-J34*K36,M34)) -> 2022-01-03T10:00:00 | M36: =L36+J36 -> 2022-01-03T11:00:00 | Q36: =IF(L36=0,"Bitte prüfen","") ->  | R36: =IF(J36/I36<0.5,"Bitte prüfen","") ->  | S36: =IF(J36/I36>2.5,"Bitte prüfen","") ->  | T36: =IF(K36<0,"Bitte prüfen",IF(K36>1.5,"Bitte prüfen","")) -> 
A38: =MAX(A34:A37)+1 -> 15 | B38: Aussteifungsrahmen trennen und ausbauen | C38: 03.06.05.06 | D38: Rückbau: 3x Druckträger + Blech je Hilfsbrücke (konstruktiv) | E38: 3 | F38: St | G38: 1 | H38: St/h | I38: =E38/G38*I$1 -> 0.125 | J38: 0.125 | K38: 0 | L38: =IF(K38=100%,L36,IF(K38>0%,M36-J36*K38,M36)) -> 2022-01-03T11:00:00 | M38: =L38+J38 -> 2022-01-03T14:00:00 | Q38: =IF(L38=0,"Bitte prüfen","") ->  | R38: =IF(J38/I38<0.5,"Bitte prüfen","") ->  | S38: =IF(J38/I38>2.5,"Bitte prüfen","") ->  | T38: =IF(K38<0,"Bitte prüfen",IF(K38>1.5,"Bitte prüfen","")) -> 
A40: =MAX(A36:A39)+1 -> 16 | B40: Verbaubleche (Schotterhalterung) ziehen Seite 1 | C40: 03.06.05.07 | D40: ggf. mit anderen Gewerken parallel | E40: 1 | F40: St | G40: 6 | H40: St/h | I40: =E40/G40*I$1 -> 0.006944444444 | J40: 0.01041666667 | K40: 0 | L40: =IF(K40=100%,L38,IF(K40>0%,M38-J38*K40,M38)) -> 2022-01-03T14:00:00 | M40: =L40+J40 -> 2022-01-03T14:15:00 | Q40: =IF(L40=0,"Bitte prüfen","") ->  | R40: =IF(J40/I40<0.5,"Bitte prüfen","") ->  | S40: =IF(J40/I40>2.5,"Bitte prüfen","") ->  | T40: =IF(K40<0,"Bitte prüfen",IF(K40>1.5,"Bitte prüfen","")) -> 
A42: =MAX(A38:A41)+1 -> 17 | B42: Verbaubleche (Schotterhalterung) ziehen Seite 2 | C42: 03.06.05.07 | D42: ggf. mit anderen Gewerken parallel | E42: 1 | F42: St | G42: 6 | H42: St/h | I42: =E42/G42*I$1 -> 0.006944444444 | J42: 0.01041666667 | K42: 1 | L42: =IF(K42=100%,L40,IF(K42>0%,M40-J40*K42,M40)) -> 2022-01-03T14:00:00 | M42: =L42+J42 -> 2022-01-03T14:15:00 | Q42: =IF(L42=0,"Bitte prüfen","") ->  | R42: =IF(J42/I42<0.5,"Bitte prüfen","") ->  | S42: =IF(J42/I42>2.5,"Bitte prüfen","") ->  | T42: =IF(K42<0,"Bitte prüfen",IF(K42>1.5,"Bitte prüfen","")) -> 
A44: =MAX(A42:A43)+1 -> 18 | B44: Verbauträger inkl. Auflagerträger abbrennen mind. 1,70 u. SOK Seite 1 | C44: 03.06.05.08 | E44: 3 | F44: St | G44: 4 | H44: St/h | I44: =E44/G44*I$1 -> 0.03125 | J44: 0.03125 | K44: 0 | L44: =IF(K44=100%,L42,IF(K44>0%,M42-J42*K44,M42)) -> 2022-01-03T14:15:00 | M44: =L44+J44 -> 2022-01-03T15:00:00 | Q44: =IF(L44=0,"Bitte prüfen","") ->  | R44: =IF(J44/I44<0.5,"Bitte prüfen","") ->  | S44: =IF(J44/I44>2.5,"Bitte prüfen","") ->  | T44: =IF(K44<0,"Bitte prüfen",IF(K44>1.5,"Bitte prüfen","")) -> 
A46: =MAX(A42:A45)+1 -> 19 | B46: Verbauträger inkl. Auflagerträger abbrennen mind. 1,70 u. SOK Seite 2 | C46: 03.06.05.08 | E46: 3 | F46: St | G46: 4 | H46: St/h | I46: =E46/G46*I$1 -> 0.03125 | J46: 0.03125 | K46: 0 | L46: =IF(K46=100%,L44,IF(K46>0%,M44-J44*K46,M44)) -> 2022-01-03T15:00:00 | M46: =L46+J46 -> 2022-01-03T15:45:00 | Q46: =IF(L46=0,"Bitte prüfen","") ->  | R46: =IF(J46/I46<0.5,"Bitte prüfen","") ->  | S46: =IF(J46/I46>2.5,"Bitte prüfen","") ->  | T46: =IF(K46<0,"Bitte prüfen",IF(K46>1.5,"Bitte prüfen","")) -> 
A48: =MAX(A44:A47)+1 -> 20 | B48: Kammerwandwände einbauen (Fertigteil; Seite 1), verschrauben oder vergießen | C48: 03.04.03.09 | E48: 1 | F48: St | G48: 2 | H48: St/h | I48: =E48/G48*I$1 -> 0.02083333333 | J48: 0.02083333333 | K48: 0 | L48: =IF(K48=100%,L46,IF(K48>0%,M46-J46*K48,M46)) -> 2022-01-03T15:45:00 | M48: =L48+J48 -> 2022-01-03T16:15:00 | Q48: =IF(L48=0,"Bitte prüfen","") ->  | R48: =IF(J48/I48<0.5,"Bitte prüfen","") ->  | S48: =IF(J48/I48>2.5,"Bitte prüfen","") ->  | T48: =IF(K48<0,"Bitte prüfen",IF(K48>1.5,"Bitte prüfen","")) -> 
A50: =MAX(A46:A49)+1 -> 21 | B50: Kammerwandwände einbauen (Fertigteil; Seite 2), verschrauben oder vergießen | C50: 03.04.03.09 | E50: 1 | F50: St | G50: 2 | H50: St/h | I50: =E50/G50*I$1 -> 0.02083333333 | J50: 0.02083333333 | K50: 0 | L50: =IF(K50=100%,L48,IF(K50>0%,M48-J48*K50,M48)) -> 2022-01-03T16:15:00 | M50: =L50+J50 -> 2022-01-03T16:45:00 | Q50: =IF(L50=0,"Bitte prüfen","") ->  | R50: =IF(J50/I50<0.5,"Bitte prüfen","") ->  | S50: =IF(J50/I50>2.5,"Bitte prüfen","") ->  | T50: =IF(K50<0,"Bitte prüfen",IF(K50>1.5,"Bitte prüfen","")) -> 
A52: =MAX(A48:A51)+1 -> 22 | B52: Erhärtungszeit Verguss Kammerwände | C52: Herstellerangaben | D52: maßgeblich ist die Herstellerangabe | E52: 1 | F52: psch | G52: 0.04545454545 | H52: psch/h | I52: =E52/G52*I$1 -> 0.9166666667 | J52: 0.9166666667 | K52: 1 | L52: =IF(K52=100%,L50,IF(K52>0%,M50-J50*K52,M50)) -> 2022-01-03T16:15:00 | M52: =L52+J52 -> 2022-01-04T14:15:00 | Q52: =IF(L52=0,"Bitte prüfen","") ->  | R52: =IF(J52/I52<0.5,"Bitte prüfen","") ->  | S52: =IF(J52/I52>2.5,"Bitte prüfen","") ->  | T52: =IF(K52<0,"Bitte prüfen",IF(K52>1.5,"Bitte prüfen","")) -> 
B53: (Voraussetzung für Beginn Vorgang Widerlagerhinterfüllung) | D53: z.B. Pagel V1: ca. 20-24 h und V2: ca. 4-8 h
A54: 23 | B54: Lagersockel inkl. Schalung und Bewehrung herstellen | C54: 03.04.05.02 | D54: Wird vor der Sperrung erbracht! Hier als Merker für Gesamtablauf. | E54: 4 | F54: St | G54: 0.2 | H54: St/h | I54: =E54/G54*I$1 -> 0.8333333333 | J54: 0.8333333333 | K54: 1 | L54: =IF(K54=100%,L52,IF(K54>0%,M52-J52*K54,M52)) -> 2022-01-03T16:15:00 | M54: =L54+J54 -> 2022-01-04T12:15:00 | Q54: =IF(L54=0,"Bitte prüfen","") ->  | R54: =IF(J54/I54<0.5,"Bitte prüfen","") ->  | S54: =IF(J54/I54>2.5,"Bitte prüfen","") ->  | T54: =IF(K54<0,"Bitte prüfen",IF(K54>1.5,"Bitte prüfen","")) -> 
B55: => Komplexität nicht abbildbar | F55: Lager herstellen
A56: 24 | B56: Lagerplatte einbauen | C56: 03.04.03.10 | D56: 0,5 h je Lager | E56: 4 | F56: St | G56: 2 | H56: St/h | I56: =E56/G56*I$1 -> 0.08333333333 | J56: 0.08333333333 | K56: 0 | L56: 2022-01-03T16:15:00 | M56: =L56+J56 -> 2022-01-03T18:15:00 | Q56: =IF(L56=0,"Bitte prüfen","") ->  | R56: =IF(J56/I56<0.5,"Bitte prüfen","") ->  | S56: =IF(J56/I56>2.5,"Bitte prüfen","") ->  | T56: =IF(K56<0,"Bitte prüfen",IF(K56>1.5,"Bitte prüfen","")) -> 
B57: => Komplexität nicht abbildbar | D57: Parallelität wegen Fachpersonal eingeschränkt
A58: =MAX(A56:A57)+1 -> 25 | B58: Brückeneinschub (1. Schritt bis vor die Lager) | C58: 03.05.02.05 | D58: abhängig vom Verschubweg | E58: 20 | F58: m | G58: 5 | H58: m/h | I58: =E58/G58*I$1 -> 0.1666666667 | J58: 0.2083333333 | K58: 1 | L58: =IF(K58=100%,L56,IF(K58>0%,M56-J56*K58,M56)) -> 2022-01-03T16:15:00 | M58: =L58+J58 -> 2022-01-03T21:15:00 | Q58: =IF(L58=0,"Bitte prüfen","") ->  | R58: =IF(J58/I58<0.5,"Bitte prüfen","") ->  | S58: =IF(J58/I58>2.5,"Bitte prüfen","") ->  | T58: =IF(K58<0,"Bitte prüfen",IF(K58>1.5,"Bitte prüfen","")) -> 
A60: =MAX(A58:A59)+1 -> 26 | B60: Verschubeinrichtung montieren | C60: 03.05.02.04 | D60: Montage unter ausgebauter HB | E60: 12 | F60: m | G60: 5 | H60: m/h | I60: =E60/G60*I$1 -> 0.1 | J60: 0.1041666667 | K60: 0 | L60: =IF(K60=100%,L58,IF(K60>0%,M58-J58*K60,M58)) -> 2022-01-03T21:15:00 | M60: =L60+J60 -> 2022-01-03T23:45:00 | Q60: =IF(L60=0,"Bitte prüfen","") ->  | R60: =IF(J60/I60<0.5,"Bitte prüfen","") ->  | S60: =IF(J60/I60>2.5,"Bitte prüfen","") ->  | T60: =IF(K60<0,"Bitte prüfen",IF(K60>1.5,"Bitte prüfen","")) -> 
A62: =MAX(A60:A61)+1 -> 27 | B62: Brückeneinschub (2. Schritt in Endlage) | C62: 03.05.02.05 | E62: 6 | F62: m | G62: 2 | H62: m/h | I62: =E62/G62*I$1 -> 0.125 | J62: 0.125 | K62: 0 | L62: =IF(K62=100%,L60,IF(K62>0%,M60-J60*K62,M60)) -> 2022-01-03T23:45:00 | M62: =L62+J62 -> 2022-01-04T02:45:00 | O62: 3 | Q62: =IF(L62=0,"Bitte prüfen","") ->  | R62: =IF(J62/I62<0.5,"Bitte prüfen","") ->  | S62: =IF(J62/I62>2.5,"Bitte prüfen","") ->  | T62: =IF(K62<0,"Bitte prüfen",IF(K62>1.5,"Bitte prüfen","")) -> 
A64: =MAX(A60:A63)+1 -> 28 | B64: Lager abstapeln und ausrichten | C64: 03.05.02.06 | D64: Annahme: 1,0 m abstapeln (Stapelhölzer) | E64: 1 | F64: m | G64: 0.1 | H64: m/h | I64: =E64/G64*I$1 -> 0.4166666667 | J64: 0.4166666667 | K64: 0 | L64: =IF(K64=100%,L62,IF(K64>0%,M62-J62*K64,M62)) -> 2022-01-04T02:45:00 | M64: =L64+J64 -> 2022-01-04T12:45:00 | Q64: =IF(L64=0,"Bitte prüfen","") ->  | R64: =IF(J64/I64<0.5,"Bitte prüfen","") ->  | S64: =IF(J64/I64>2.5,"Bitte prüfen","") ->  | T64: =IF(K64<0,"Bitte prüfen",IF(K64>1.5,"Bitte prüfen","")) -> 
B65: Presse (1 bis 2 cm über dem Lager) | D65: Presse ansetzen
A66: 29 | B66: Lagerplatte ausrichten, einmessen und vergießen | C66: 03.04.05.05 | D66: 2,0 h je Lager | E66: 4 | F66: St | G66: 0.5 | H66: St/h | I66: =E66/G66*I$1 -> 0.3333333333 | J66: 0.3333333333 | K66: 0 | L66: =IF(K66=100%,L64,IF(K66>0%,M64-J64*K66,M64)) -> 2022-01-04T12:45:00 | M66: =L66+J66 -> 2022-01-04T20:45:00 | Q66: =IF(L66=0,"Bitte prüfen","") ->  | R66: =IF(J66/I66<0.5,"Bitte prüfen","") ->  | S66: =IF(J66/I66>2.5,"Bitte prüfen","") ->  | T66: =IF(K66<0,"Bitte prüfen",IF(K66>1.5,"Bitte prüfen","")) -> 
D67: parallelität wegen Fachpersonal eingeschränkt
A68: 30 | B68: Erhärtungszeit Verguss Lagerplatte | C68: Herstellerangaben | D68: maßgeblich ist die Herstellerangabe | E68: 1 | F68: psch | G68: 0.125 | H68: psch/h | I68: =E68/G68*I$1 -> 0.3333333333 | J68: 0.3333333333 | K68: 0 | L68: =IF(K68=100%,L66,IF(K68>0%,M66-J66*K68,M66)) -> 2022-01-04T20:45:00 | M68: =L68+J68 -> 2022-01-05T04:45:00 | O68: 4 | Q68: =IF(L68=0,"Bitte prüfen","") ->  | R68: =IF(J68/I68<0.5,"Bitte prüfen","") ->  | S68: =IF(J68/I68>2.5,"Bitte prüfen","") ->  | T68: =IF(K68<0,"Bitte prüfen",IF(K68>1.5,"Bitte prüfen","")) -> 
D69: z.B. Pagel V1: ca. 20-24 h und V2: ca. 4-8 h
A70: 31 | B70: Fahrbahnübergänge herstellen | C70: 03.04.06.01 | D70: 4 bis 5 m je Gleis und Seite | E70: 9 | F70: m | G70: 0.75 | H70: m/h | I70: =E70/G70*I$1 -> 0.5 | J70: 0.5 | K70: 0.5 | L70: =IF(K70=100%,L68,IF(K70>0%,M68-J68*K70,M68)) -> 2022-01-05T00:45:00 | M70: =L70+J70 -> 2022-01-05T12:45:00 | Q70: =IF(L70=0,"Bitte prüfen","") ->  | R70: =IF(J70/I70<0.5,"Bitte prüfen","") ->  | S70: =IF(J70/I70>2.5,"Bitte prüfen","") ->  | T70: =IF(K70<0,"Bitte prüfen",IF(K70>1.5,"Bitte prüfen","")) -> 
A72: 32 | B72: Aushärtungszeit Fahrbahnübergang | C72: Herstellerangaben | D72: maßgeblich ist die Herstellerangabe | E72: 1 | F72: psch | G72: 0.125 | H72: psch/h | I72: =E72/G72*I$1 -> 0.3333333333 | J72: 0.3333333333 | K72: 0 | L72: =IF(K72=100%,L70,IF(K72>0%,M70-J70*K72,M70)) -> 2022-01-05T12:45:00 | M72: =L72+J72 -> 2022-01-05T20:45:00 | Q72: =IF(L72=0,"Bitte prüfen","") ->  | R72: =IF(J72/I72<0.5,"Bitte prüfen","") ->  | S72: =IF(J72/I72>2.5,"Bitte prüfen","") ->  | T72: =IF(K72<0,"Bitte prüfen",IF(K72>1.5,"Bitte prüfen","")) -> 
D73: z.B. Pagel V1: ca. 20-24 h und V2: ca. 4-8 h
A74: 33 | B74: Widerlagerhinterfüllung einbauen und verdichten | C74: 03.02.01.04 | E74: 120 | F74: m3 | G74: 50 | H74: m3/h | I74: =E74/G74*I$1 -> 0.1 | J74: 0.1041666667 | K74: 0.5 | L74: =IF(K74=100%,L72,IF(K74>0%,M72-J72*K74,M72)) -> 2022-01-05T16:45:00 | M74: =L74+J74 -> 2022-01-05T19:15:00 | Q74: =IF(L74=0,"Bitte prüfen","") ->  | R74: =IF(J74/I74<0.5,"Bitte prüfen","") ->  | S74: =IF(J74/I74>2.5,"Bitte prüfen","") ->  | T74: =IF(K74<0,"Bitte prüfen",IF(K74>1.5,"Bitte prüfen","")) -> 
A76: 34 | B76: Einbau PSS und verdichten in Kleinmengen | C76: 02.06.02.04 | D76: inkl. Abnahme der PSS | E76: 50 | F76: m3 | G76: 25 | H76: m3/h | I76: =E76/G76*I$1 -> 0.08333333333 | J76: 0.08333333333 | K76: 0.5 | L76: =IF(K76=100%,L74,IF(K76>0%,M74-J74*K76,M74)) -> 2022-01-05T18:00:00 | M76: =L76+J76 -> 2022-01-05T20:00:00 | Q76: =IF(L76=0,"Bitte prüfen","") ->  | R76: =IF(J76/I76<0.5,"Bitte prüfen","") ->  | S76: =IF(J76/I76>2.5,"Bitte prüfen","") ->  | T76: =IF(K76<0,"Bitte prüfen",IF(K76>1.5,"Bitte prüfen","")) -> 
A78: 35 | B78: Grundschotter einbauen | C78: 02.02.04.04 | D78: z.B. vom Lkw oder Flachwagen mit klappbaren Seitenborden vor Kopf | E78: 60 | F78: m3 | G78: 30 | H78: m3/h | I78: =E78/G78*I$1 -> 0.08333333333 | J78: 0.08333333333 | K78: 0 | L78: =IF(K78=100%,L76,IF(K78>0%,M76-J76*K78,M76)) -> 2022-01-05T20:00:00 | M78: =L78+J78 -> 2022-01-05T22:00:00 | Q78: =IF(L78=0,"Bitte prüfen","") ->  | R78: =IF(J78/I78<0.5,"Bitte prüfen","") ->  | S78: =IF(J78/I78>2.5,"Bitte prüfen","") ->  | T78: =IF(K78<0,"Bitte prüfen",IF(K78>1.5,"Bitte prüfen","")) -> 
A80: 36 | B80: Gleisjoche (6m Länge) einbauen | C80: 02.02.05.02 | E80: 40 | F80: m | G80: 25 | H80: m/h | I80: =E80/G80*I$1 -> 0.06666666667 | J80: 0.0625 | K80: 0 | L80: =IF(K80=100%,L78,IF(K80>0%,M78-J78*K80,M78)) -> 2022-01-05T22:00:00 | M80: =L80+J80 -> 2022-01-05T23:30:00 | Q80: =IF(L80=0,"Bitte prüfen","") ->  | R80: =IF(J80/I80<0.5,"Bitte prüfen","") ->  | S80: =IF(J80/I80>2.5,"Bitte prüfen","") ->  | T80: =IF(K80<0,"Bitte prüfen",IF(K80>1.5,"Bitte prüfen","")) -> 
A82: =MAX(A80:A81)+1 -> 37 | B82: Schienenwechsel; Ausbau Montageschienen | C82: 02.02.07.01 | E82: 80 | F82: m | G82: 70 | H82: m/h | I82: =E82/G82*I$1 -> 0.04761904762 | J82: 0.05208333333 | K82: 0 | L82: =IF(K82=100%,L80,IF(K82>0%,M80-J80*K82,M80)) -> 2022-01-05T23:30:00 | M82: =L82+J82 -> 2022-01-06T00:45:00 | Q82: =IF(L82=0,"Bitte prüfen","") ->  | R82: =IF(J82/I82<0.5,"Bitte prüfen","") ->  | S82: =IF(J82/I82>2.5,"Bitte prüfen","") ->  | T82: =IF(K82<0,"Bitte prüfen",IF(K82>1.5,"Bitte prüfen","")) -> 
A84: =MAX(A80:A83)+1 -> 38 | B84: Schienen verziehen, auflegen und verspannen | C84: 02.02.06.03 | E84: 80 | F84: m | G84: 150 | H84: m/h | I84: =E84/G84*I$1 -> 0.02222222222 | J84: 0.02083333333 | K84: 0 | L84: =IF(K84=100%,L82,IF(K84>0%,M82-J82*K84,M82)) -> 2022-01-06T00:45:00 | M84: =L84+J84 -> 2022-01-06T01:15:00 | O84: 5 | Q84: =IF(L84=0,"Bitte prüfen","") ->  | R84: =IF(J84/I84<0.5,"Bitte prüfen","") ->  | S84: =IF(J84/I84>2.5,"Bitte prüfen","") ->  | T84: =IF(K84<0,"Bitte prüfen",IF(K84>1.5,"Bitte prüfen","")) -> 
A86: 39 | B86: Nachschottern aus offene Schüttgutwagen mit dosierbarer Schwerkraftentladung (z.B. Fc-Wagen) | C86: 02.04.02.01 | E86: 40 | F86: m | G86: 60 | H86: m/h | I86: =E86/G86*I$1 -> 0.02777777778 | J86: 0.04166666667 | K86: 0 | L86: =IF(K86=100%,L84,IF(K86>0%,M84-J84*K86,M84)) -> 2022-01-06T01:15:00 | M86: =L86+J86 -> 2022-01-06T02:15:00 | Q86: =IF(L86=0,"Bitte prüfen","") ->  | R86: =IF(J86/I86<0.5,"Bitte prüfen","") ->  | S86: =IF(J86/I86>2.5,"Bitte prüfen","") ->  | T86: =IF(K86<0,"Bitte prüfen",IF(K86>1.5,"Bitte prüfen","")) -> 
A88: 40 | B88: Gleis stopfen (1. Stabilisierung maschinell) | C88: 02.04.02.02 | D88: H.V.: 40 m; 1. Stab.: 70 m | E88: 110 | F88: m | G88: 65 | H88: m/h | I88: =E88/G88*I$1 -> 0.07051282051 | J88: 0.07291666667 | K88: 0 | L88: =IF(K88=100%,L86,IF(K88>0%,M86-J86*K88,M86)) -> 2022-01-06T02:15:00 | M88: =L88+J88 -> 2022-01-06T04:00:00 | Q88: =IF(L88=0,"Bitte prüfen","") ->  | R88: =IF(J88/I88<0.5,"Bitte prüfen","") ->  | S88: =IF(J88/I88>2.5,"Bitte prüfen","") ->  | T88: =IF(K88<0,"Bitte prüfen",IF(K88>1.5,"Bitte prüfen","")) -> 
A90: 41 | B90: Gleis stopfen (2. Stabilisierung maschinell) | C90: 02.04.02.03 | D90: 2. Stab: 100 m | E90: 100 | F90: m | G90: 90 | H90: m/h | I90: =E90/G90*I$1 -> 0.0462962963 | J90: 0.04166666667 | K90: 0 | L90: =IF(K90=100%,L88,IF(K90>0%,M88-J88*K90,M88)) -> 2022-01-06T04:00:00 | M90: =L90+J90 -> 2022-01-06T05:00:00 | Q90: =IF(L90=0,"Bitte prüfen","") ->  | R90: =IF(J90/I90<0.5,"Bitte prüfen","") ->  | S90: =IF(J90/I90>2.5,"Bitte prüfen","") ->  | T90: =IF(K90<0,"Bitte prüfen",IF(K90>1.5,"Bitte prüfen","")) -> 
A92: 42 | B92: aluminotherm. Schweißen (Skv) 24-26 mm Lückenweite für alle Profile | C92: 02.01.02.01 | D92: Annahme 4 Schweißungen (1 Trupp) | E92: 4 | F92: St | G92: 1.75 | H92: St/h | I92: =E92/G92*I$1 -> 0.09523809524 | J92: 0.1041666667 | K92: 0 | L92: =IF(K92=100%,L90,IF(K92>0%,M90-J90*K92,M90)) -> 2022-01-06T05:00:00 | M92: =L92+J92 -> 2022-01-06T07:30:00 | Q92: =IF(L92=0,"Bitte prüfen","") ->  | R92: =IF(J92/I92<0.5,"Bitte prüfen","") ->  | S92: =IF(J92/I92>2.5,"Bitte prüfen","") ->  | T92: =IF(K92<0,"Bitte prüfen",IF(K92>1.5,"Bitte prüfen","")) -> 
A94: 43 | B94: Spannungsausgleich ohne Schlussschweißung herstellen | C94: 02.01.03.03 | D94: 2x 150 m Spannungsausgleich (2x Wärmeröhren / 2 Trupps) | E94: 300 | F94: m | G94: 150 | H94: m/h | I94: =E94/G94*I$1 -> 0.08333333333 | J94: 0.08333333333 | K94: 0.5 | L94: =IF(K94=100%,L92,IF(K94>0%,M92-J92*K94,M92)) -> 2022-01-06T06:15:00 | M94: =L94+J94 -> 2022-01-06T08:15:00 | Q94: =IF(L94=0,"Bitte prüfen","") ->  | R94: =IF(J94/I94<0.5,"Bitte prüfen","") ->  | S94: =IF(J94/I94>2.5,"Bitte prüfen","") ->  | T94: =IF(K94<0,"Bitte prüfen",IF(K94>1.5,"Bitte prüfen","")) -> 
A96: 44 | B96: Gleisschaltmittel (Achszähler, PZB, Linienleiter, Balisen etc.) anbauen | C96: 07.01.03.01.01 | D96: abhängig vom Umfang LST, Einbindung Fachplanung erforderlich | E96: 2 | F96: St | G96: 2 | H96: St/h | I96: =E96/G96*I$1 -> 0.04166666667 | J96: 0.04166666667 | K96: 0 | L96: =IF(K96=100%,L94,IF(K96>0%,M94-J94*K96,M94)) -> 2022-01-06T08:15:00 | M96: =L96+J96 -> 2022-01-06T09:15:00 | Q96: =IF(L96=0,"Bitte prüfen","") ->  | R96: =IF(J96/I96<0.5,"Bitte prüfen","") ->  | S96: =IF(J96/I96>2.5,"Bitte prüfen","") ->  | T96: =IF(K96<0,"Bitte prüfen",IF(K96>1.5,"Bitte prüfen","")) -> 
F97: Annahme getroffen
A98: 45 | B98: Bauteilerden einbauen | C98: 06.08.01.01 | E98: 2 | F98: St | G98: 4 | H98: St/h | I98: =E98/G98*I$1 -> 0.02083333333 | J98: 0.02083333333 | K98: 0.5 | L98: =IF(K98=100%,L96,IF(K98>0%,M96-J96*K98,M96)) -> 2022-01-06T08:45:00 | M98: =L98+J98 -> 2022-01-06T09:15:00 | Q98: =IF(L98=0,"Bitte prüfen","") ->  | R98: =IF(J98/I98<0.5,"Bitte prüfen","") ->  | S98: =IF(J98/I98>2.5,"Bitte prüfen","") ->  | T98: =IF(K98<0,"Bitte prüfen",IF(K98>1.5,"Bitte prüfen","")) -> 
B99: Schienenverbinder einbauen | C99: 06.08.01.02 | F99: Annahme getroffen
A100: 46 | B100: OLA zurückschwenken | C100: 06.01.01.01 | E100: 90 | F100: m | G100: 60 | H100: m/h | I100: =E100/G100*I$1 -> 0.0625 | J100: 0.0625 | K100: 0 | L100: =IF(K100=100%,L98,IF(K100>0%,M98-J98*K100,M98)) -> 2022-01-06T09:15:00 | M100: =L100+J100 -> 2022-01-06T10:45:00 | Q100: =IF(L100=0,"Bitte prüfen","") ->  | R100: =IF(J100/I100<0.5,"Bitte prüfen","") ->  | S100: =IF(J100/I100>2.5,"Bitte prüfen","") ->  | T100: =IF(K100<0,"Bitte prüfen",IF(K100>1.5,"Bitte prüfen","")) -> 
A102: =MAX(A100:A101)+1 -> 47 | B102: ggf. Prüfung, ob Abnahmehandlungen (LST) notwendig sind | C102: 07.01.08.01 | D102: Achszähler | E102: 1 | F102: St | G102: 2 | H102: St/h | I102: =E102/G102*I$1 -> 0.02083333333 | J102: 0.02083333333 | K102: 0 | L102: =IF(K102=100%,L100,IF(K102>0%,M100-J100*K102,M100)) -> 2022-01-06T10:45:00 | M102: =L102+J102 -> 2022-01-06T11:15:00 | Q102: =IF(L102=0,"Bitte prüfen","") ->  | R102: =IF(J102/I102<0.5,"Bitte prüfen","") ->  | S102: =IF(J102/I102>2.5,"Bitte prüfen","") ->  | T102: =IF(K102<0,"Bitte prüfen",IF(K102>1.5,"Bitte prüfen","")) -> 
F103: Annahme getroffen
A104: =MAX(A100:A103)+1 -> 48 | B104: ggf. Prüfung La-Einrichtung entsprechend VzG und Planung, ggf. Geschwindigkeitsüberwachung (GÜ - PZB-Magnete) für Nachlauf-La | C104: 07.01.02.03 | D104: keine baulichen Veränderungen an der Anlage gegenüber dem Urzustand | E104: 6 | F104: St | G104: 4 | H104: St/h | I104: =E104/G104*I$1 -> 0.0625 | J104: 0.0625 | K104: 0.5 | L104: =IF(K104=100%,L102,IF(K104>0%,M102-J102*K104,M102)) -> 2022-01-06T11:00:00 | M104: =L104+J104 -> 2022-01-06T12:30:00 | Q104: =IF(L104=0,"Bitte prüfen","") ->  | R104: =IF(J104/I104<0.5,"Bitte prüfen","") ->  | S104: =IF(J104/I104>2.5,"Bitte prüfen","") -> 
A106: =MAX(A102:A105)+1 -> 49 | B106: Erdungsvorrichtung ausbauen und Oberleitung einschalten (1 Schaltgruppe) | C106: 08.01.02.02 | E106: 2 | F106: psch | G106: 4 | H106: psch/h | I106: =E106/G106*I$1 -> 0.02083333333 | J106: 0.02083333333 | K106: 0.5 | L106: =IF(K106=100%,L104,IF(K106>0%,M104-J104*K106,M104)) -> 2022-01-06T11:45:00 | M106: =L106+J106 -> 2022-01-06T12:15:00 | Q106: =IF(L106=0,"Bitte prüfen","") ->  | R106: =IF(J106/I106<0.5,"Bitte prüfen","") ->  | S106: =IF(J106/I106>2.5,"Bitte prüfen","") -> 
A108: =MAX(A104:A107)+1 -> 50 | B108: Sperrung aufheben | C108: 08.01.01.02 | E108: 1 | F108: psch | G108: 2 | H108: psch/h | I108: =E108/G108*I$1 -> 0.02083333333 | J108: 0.02083333333 | K108: 0 | L108: =IF(K108=100%,L106,IF(K108>0%,M106-J106*K108,M106)) -> 2022-01-06T12:15:00 | M108: =L108+J108 -> 2022-01-06T12:45:00 | Q108: =IF(L108=0,"Bitte prüfen","") ->  | R108: =IF(J108/I108<0.5,"Bitte prüfen","") ->  | S108: =IF(J108/I108>2.5,"Bitte prüfen","") -> 
O109: =M108-L1 -> 3.572916667

Sheet Rahmen Einschub
A1: Projekt | B1: Herstellung Rahmenbauwerk mit Einschub (ohne Hilfsbrücken) | H1: Uhrzeit-berechnung: | I1: 01:00:00 | J1: Start (Datum/Uhrzeit) eingeben: | L1: 2022-01-02T23:00:00
A2: Vor-gangs- Nr. | B2: Vorgangsbezeichnung | C2: Position Katalog | D2: Hinweise/Bemerkungen | E2: Leistungs-menge | F2: Einheit Leistungs-menge Erläuterung | G2: Leistungs-wert Katalog | H2: Einheit Leistungswert Erläuterung | I2: Dauer (rechn.) | J2: Dauer (gewählt) | K2: Para-llelität in % | L2: Beginn | M2: Ende | N2: Bemerkung | O2: Tag-wechsel | Q2: Prüfung Anfangszeit | R2: Prüfung Dauer gewählt zu klein | S2: Prüfung Dauer gewählt zu groß | T2: Prüfung Parallelität
A3: 1 | B3: 2 | C3: 3 | D3: 4 | E3: 5 | F3: 6 | G3: 7 | H3: 8 | I3: 9 | J3: 10 | K3: 11 | L3: 12 | M3: 13 | N3: 14 | O3: 15 | Q3: 16 | R3: 17 | S3: 18 | T3: 19
A4: 0 | B4: Vorbereitende Maßnahmen definieren z.B. BE-Fläche, Anrampung, Baustrom, Kabelumverlegung, Verbau zum Nachbargleis, Feste Absperrung, Bodengutachten, Kampfmittelsondierung, Gründung Hilfsbrücke | D4: Im Vorfeld in einer gesonderten (Gleis-)Sperrung zu realisieren. | O4: 0 | Q4: =IF(L4=0,"Bitte prüfen","") -> Bitte prüfen | R4: =IF(J4/I4<0.5,"Bitte prüfen","") ->  | S4: =IF(J4/I4>2.5,"Bitte prüfen","") ->  | T4: =IF(K4<0,"Bitte prüfen",IF(K4>1.5,"Bitte prüfen","")) -> 
A6: =MAX(A4:A5)+1 -> 1 | B6: Sperrung einrichten | C6: 08.01.01.01 | D6: Regelungen Betra beachten | E6: 1 | F6: psch | G6: 2 | H6: psch/h | I6: =E6/G6*I$1 -> 0.02083333333 | J6: 0.02083333333 | K6: 0 | L6: =L1 -> 2022-01-02T23:00:00 | M6: =L6+J6 -> 2022-01-02T23:30:00 | O6: 1 | Q6: =IF(L6=0,"Bitte prüfen","") ->  | R6: =IF(J6/I6<0.5,"Bitte prüfen","") ->  | S6: =IF(J6/I6>2.5,"Bitte prüfen","") ->  | T6: =IF(K6<0,"Bitte prüfen",IF(K6>1.5,"Bitte prüfen","")) -> 
A8: =MAX(A4:A7)+1 -> 2 | B8: Oberleitung abschalten und Erdungs-vorrichtung einbauen (1 Schaltgruppe) | C8: 08.01.02.01 | E8: 2 | F8: psch | G8: 4 | H8: psch/h | I8: =E8/G8*I$1 -> 0.02083333333 | J8: 0.02083333333 | K8: 0.5 | L8: =IF(K8=100%,L6,IF(K8>0%,M6-J6*K8,M6)) -> 2022-01-02T23:15:00 | M8: =L8+J8 -> 2022-01-02T23:45:00 | Q8: =IF(L8=0,"Bitte prüfen","") ->  | R8: =IF(J8/I8<0.5,"Bitte prüfen","") ->  | S8: =IF(J8/I8>2.5,"Bitte prüfen","") ->  | T8: =IF(K8<0,"Bitte prüfen",IF(K8>1.5,"Bitte prüfen","")) -> 
D9: Teilparallelität zu Vorgang Nr. 1
A10: =MAX(A6:A9)+1 -> 3 | B10: Gleisschaltmittel (Achszähler, PZB, Linienleiter, Balisen etc.) abbauen | C10: 07.01.02.02/ 07.01.02.05/ 07.01.03.02 | D10: kann ggf. zu Bahnerdung parallel laufen (kein ZWB - nur Personal) | E10: 3 | F10: St | G10: 3 | H10: St/h | I10: =E10/G10*I$1 -> 0.04166666667 | J10: 0.04166666667 | K10: 0.5 | L10: =IF(K10=100%,L8,IF(K10>0%,M8-J8*K10,M8)) -> 2022-01-02T23:30:00 | M10: =L10+J10 -> 2022-01-03T00:30:00 | O10: 2 | Q10: =IF(L10=0,"Bitte prüfen","") ->  | R10: =IF(J10/I10<0.5,"Bitte prüfen","") ->  | S10: =IF(J10/I10>2.5,"Bitte prüfen","") ->  | T10: =IF(K10<0,"Bitte prüfen",IF(K10>1.5,"Bitte prüfen","")) -> 
D11: absolute Parallelität zu Vorgang Nr. 2 | F11: Annahme getroffen
A12: =MAX(A8:A11)+1 -> 4 | B12: Erdungseinrichtungen (Schienen-, Gleisverbinder, Betriebserden etc.) abbauen | C12: 06.08.02.03 | D12: absolute Parallelität zu Vorgang Nr. 3, jedoch muss der Vorgang Nr. 2 vorher abgeschlossen sein. | E12: 1 | F12: St | G12: 1 | H12: St/h | I12: =E12/G12*I$1 -> 0.04166666667 | J12: 0.04166666667 | K12: 1 | L12: 2022-01-02T23:45:00 | M12: =L12+J12 -> 2022-01-03T00:45:00 | N12: Beginnzeit händisch gesetzt, da Vorgang 2 abgeschlossen sein muss. | Q12: =IF(L12=0,"Bitte prüfen","") ->  | R12: =IF(J12/I12<0.5,"Bitte prüfen","") ->  | S12: =IF(J12/I12>2.5,"Bitte prüfen","") ->  | T12: =IF(K12<0,"Bitte prüfen",IF(K12>1.5,"Bitte prüfen","")) -> 
A14: =MAX(A10:A13)+1 -> 5 | B14: Rückstromführung montieren | C14: 06.08.01.07 | D14: Rücksprache mit Fachplaner, ob die Leistung erforderlich ist! | E14: 2 | F14: St | G14: 1 | H14: St/h | I14: =E14/G14*I$1 -> 0.08333333333 | J14: 0.08333333333 | K14: 0.5 | L14: =IF(K14=100%,L12,IF(K14>0%,M12-J12*K14,M12)) -> 2022-01-03T00:15:00 | M14: =L14+J14 -> 2022-01-03T02:15:00 | Q14: =IF(L14=0,"Bitte prüfen","") ->  | R14: =IF(J14/I14<0.5,"Bitte prüfen","") ->  | S14: =IF(J14/I14>2.5,"Bitte prüfen","") ->  | T14: =IF(K14<0,"Bitte prüfen",IF(K14>1.5,"Bitte prüfen","")) -> 
D15: Parallel zu Vorgang Nr. 4
A16: =MAX(A12:A15)+1 -> 6 | B16: Schienen trennen/schneiden (Trennschnitt) | C16: 02.01.01.01 | D16: zur Wiederverwendung je 2 Schnitte rechts, links | E16: 4 | F16: St | G16: 6 | H16: St/h | I16: =E16/G16*I$1 -> 0.02777777778 | J16: 0.03125 | K16: 0 | L16: =IF(K16=100%,L14,IF(K16>0%,M14-J14*K16,M14)) -> 2022-01-03T02:15:00 | M16: =L16+J16 -> 2022-01-03T03:00:00 | Q16: =IF(L16=0,"Bitte prüfen","") ->  | R16: =IF(J16/I16<0.5,"Bitte prüfen","") ->  | S16: =IF(J16/I16>2.5,"Bitte prüfen","") ->  | T16: =IF(K16<0,"Bitte prüfen",IF(K16>1.5,"Bitte prüfen","")) -> 
A18: =MAX(A14:A17)+1 -> 7 | B18: Schienen lösen und verziehen | C18: 02.02.02.01 | D18: Schiene lösen mit Schrauber (2 Trupps á 2 Leute) | E18: 60 | F18: m | G18: 150 | H18: m/h | I18: =E18/G18*I$1 -> 0.01666666667 | J18: 0.02083333333 | K18: 0.25 | L18: 2022-01-03T02:45:00 | M18: =L18+J18 -> 2022-01-03T03:15:00 | N18: Beginnzeit händisch gesetzt, wegen Minutenanpassung | Q18: =IF(L18=0,"Bitte prüfen","") ->  | R18: =IF(J18/I18<0.5,"Bitte prüfen","") ->  | S18: =IF(J18/I18>2.5,"Bitte prüfen","") ->  | T18: =IF(K18<0,"Bitte prüfen",IF(K18>1.5,"Bitte prüfen","")) -> 
D19: Teilparallelität zu Vorgang Nr. 6
A20: =MAX(A16:A19)+1 -> 8 | B20: Montageschiene aufsetzen | C20: 02.02.07.01 | E20: 60 | F20: m | G20: 60 | H20: m/h | I20: =E20/G20*I$1 -> 0.04166666667 | J20: 0.04166666667 | K20: 0 | L20: =IF(K20=100%,L18,IF(K20>0%,M18-J18*K20,M18)) -> 2022-01-03T03:15:00 | M20: =L20+J20 -> 2022-01-03T04:15:00 | Q20: =IF(L20=0,"Bitte prüfen","") ->  | R20: =IF(J20/I20<0.5,"Bitte prüfen","") ->  | S20: =IF(J20/I20>2.5,"Bitte prüfen","") ->  | T20: =IF(K20<0,"Bitte prüfen",IF(K20>1.5,"Bitte prüfen","")) -> 
A22: =MAX(A18:A21)+1 -> 9 | B22: Jochweise (6 m) rausheben, transportieren und lagern | C22: 02.02.01.04 | D22: Betonschwellen | E22: 30 | F22: m | G22: 30 | H22: m/h | I22: =E22/G22*I$1 -> 0.04166666667 | J22: 0.04166666667 | K22: 0 | L22: =IF(K22=100%,L20,IF(K22>0%,M20-J20*K22,M20)) -> 2022-01-03T04:15:00 | M22: =L22+J22 -> 2022-01-03T05:15:00 | Q22: =IF(L22=0,"Bitte prüfen","") ->  | R22: =IF(J22/I22<0.5,"Bitte prüfen","") ->  | S22: =IF(J22/I22>2.5,"Bitte prüfen","") ->  | T22: =IF(K22<0,"Bitte prüfen",IF(K22>1.5,"Bitte prüfen","")) -> 
A24: =MAX(A20:A23)+1 -> 10 | B24: Schotter ausbauen | C24: 02.02.03.06 | D24: hier als Beispiel Kleinstmengen Verladung auf LKW vor Kopf | E24: 60 | F24: m3 | G24: 30 | H24: m3/h | I24: =E24/G24*I$1 -> 0.08333333333 | J24: 0.08333333333 | K24: 0 | L24: =IF(K24=100%,L22,IF(K24>0%,M22-J22*K24,M22)) -> 2022-01-03T05:15:00 | M24: =L24+J24 -> 2022-01-03T07:15:00 | Q24: =IF(L24=0,"Bitte prüfen","") ->  | R24: =IF(J24/I24<0.5,"Bitte prüfen","") ->  | S24: =IF(J24/I24>2.5,"Bitte prüfen","") ->  | T24: =IF(K24<0,"Bitte prüfen",IF(K24>1.5,"Bitte prüfen","")) -> 
A26: =MAX(A22:A25)+1 -> 11 | B26: Vorhandene Abdichtung sortenrein lösen | C26: 03.01.01.04 | E26: 30 | F26: m2 | G26: 15 | H26: m2/h | I26: =E26/G26*I$1 -> 0.08333333333 | J26: 0.08333333333 | K26: 0 | L26: =IF(K26=100%,L24,IF(K26>0%,M24-J24*K26,M24)) -> 2022-01-03T07:15:00 | M26: =L26+J26 -> 2022-01-03T09:15:00 | Q26: =IF(L26=0,"Bitte prüfen","") ->  | R26: =IF(J26/I26<0.5,"Bitte prüfen","") ->  | S26: =IF(J26/I26>2.5,"Bitte prüfen","") ->  | T26: =IF(K26<0,"Bitte prüfen",IF(K26>1.5,"Bitte prüfen","")) -> 
A28: =MAX(A24:A27)+1 -> 12 | B28: Abbruch Überbau und Verladen auf LKW | C28: 03.01.01.03 | E28: 20 | F28: m3 | G28: 10 | H28: m3/h | I28: =E28/G28*I$1 -> 0.08333333333 | J28: 0.08333333333 | K28: 0 | L28: =IF(K28=100%,L26,IF(K28>0%,M26-J26*K28,M26)) -> 2022-01-03T09:15:00 | M28: =L28+J28 -> 2022-01-03T11:15:00 | Q28: =IF(L28=0,"Bitte prüfen","") ->  | R28: =IF(J28/I28<0.5,"Bitte prüfen","") ->  | S28: =IF(J28/I28>2.5,"Bitte prüfen","") ->  | T28: =IF(K28<0,"Bitte prüfen",IF(K28>1.5,"Bitte prüfen","")) -> 
A30: =MAX(A26:A29)+1 -> 13 | B30: Erdarbeiten: Freilegen der Rahmen- und Flügelwände | C30: 03.02.01.02 | D30: Ausführung parallel zu Vorgang Nr. 12 und Nr. 15 und paralleler Bodenaushub an beiden Rahmenwänden | E30: 360 | F30: m3 | G30: 40 | H30: m3/h | I30: =E30/G30*I$1 -> 0.375 | J30: 0.375 | K30: 0.25 | L30: =IF(K30=100%,L28,IF(K30>0%,M28-J28*K30,M28)) -> 2022-01-03T10:45:00 | M30: =L30+J30 -> 2022-01-03T19:45:00 | Q30: =IF(L30=0,"Bitte prüfen","") ->  | R30: =IF(J30/I30<0.5,"Bitte prüfen","") ->  | S30: =IF(J30/I30>2.5,"Bitte prüfen","") ->  | T30: =IF(K30<0,"Bitte prüfen",IF(K30>1.5,"Bitte prüfen","")) -> 
A32: =MAX(A28:A31)+1 -> 14 | B32: Rahmen- und Flügelwände und Fundamente abbrechen inkl. Verladen auf LKW | C32: 03.01.01.05 | E32: 150 | F32: m3 | G32: 7.5 | H32: m3/h | I32: =E32/G32*I$1 -> 0.8333333333 | J32: 0.8333333333 | K32: 0 | L32: =IF(K32=100%,L30,IF(K32>0%,M30-J30*K32,M30)) -> 2022-01-03T19:45:00 | M32: =L32+J32 -> 2022-01-04T15:45:00 | O32: 3 | Q32: =IF(L32=0,"Bitte prüfen","") ->  | R32: =IF(J32/I32<0.5,"Bitte prüfen","") ->  | S32: =IF(J32/I32>2.5,"Bitte prüfen","") ->  | T32: =IF(K32<0,"Bitte prüfen",IF(K32>1.5,"Bitte prüfen","")) -> 
A34: =MAX(A30:A33)+1 -> 15 | B34: Erdarbeiten Bodenaushub inkl. Planum (Bodenaustausch für Gründung Verschubbahn) | C34: 03.02.01.02 | E34: 60 | F34: m3 | G34: 30 | H34: m3/h | I34: =E34/G34*I$1 -> 0.08333333333 | J34: 0.08333333333 | K34: 0 | L34: =IF(K34=100%,L32,IF(K34>0%,M32-J32*K34,M32)) -> 2022-01-04T15:45:00 | M34: =L34+J34 -> 2022-01-04T17:45:00 | Q34: =IF(L34=0,"Bitte prüfen","") ->  | R34: =IF(J34/I34<0.5,"Bitte prüfen","") ->  | S34: =IF(J34/I34>2.5,"Bitte prüfen","") ->  | T34: =IF(K34<0,"Bitte prüfen",IF(K34>1.5,"Bitte prüfen","")) -> 
A36: =MAX(A32:A35)+1 -> 16 | B36: Erdarbeiten Bodenaustausch (tragfähingen Boden einbauen) | C36: 03.05.02.01 | E36: 60 | F36: m3 | G36: 30 | H36: m3/h | I36: =E36/G36*I$1 -> 0.08333333333 | J36: 0.08333333333 | K36: 0 | L36: =IF(K36=100%,L34,IF(K36>0%,M34-J34*K36,M34)) -> 2022-01-04T17:45:00 | M36: =L36+J36 -> 2022-01-04T19:45:00 | Q36: =IF(L36=0,"Bitte prüfen","") ->  | R36: =IF(J36/I36<0.5,"Bitte prüfen","") ->  | S36: =IF(J36/I36>2.5,"Bitte prüfen","") ->  | T36: =IF(K36<0,"Bitte prüfen",IF(K36>1.5,"Bitte prüfen","")) -> 
A38: =MAX(A34:A37)+1 -> 17 | B38: Verschubfundamente einbauen | C38: 03.05.02.03 | D38: Verschubweg: 12 m | E38: 24 | F38: m | G38: 5 | H38: m/h | I38: =E38/G38*I$1 -> 0.2 | J38: 0.2083333333 | K38: 0 | L38: =IF(K38=100%,L36,IF(K38>0%,M36-J36*K38,M36)) -> 2022-01-04T19:45:00 | M38: =L38+J38 -> 2022-01-05T00:45:00 | O38: 4 | Q38: =IF(L38=0,"Bitte prüfen","") ->  | R38: =IF(J38/I38<0.5,"Bitte prüfen","") ->  | S38: =IF(J38/I38>2.5,"Bitte prüfen","") ->  | T38: =IF(K38<0,"Bitte prüfen",IF(K38>1.5,"Bitte prüfen","")) -> 
A40: =MAX(A36:A39)+1 -> 18 | B40: Verschubeinrichtung montieren | C40: 03.05.02.04 | E40: 24 | F40: m | G40: 8 | H40: m/h | I40: =E40/G40*I$1 -> 0.125 | J40: 0.125 | K40: 0 | L40: =IF(K40=100%,L38,IF(K40>0%,M38-J38*K40,M38)) -> 2022-01-05T00:45:00 | M40: =L40+J40 -> 2022-01-05T03:45:00 | Q40: =IF(L40=0,"Bitte prüfen","") ->  | R40: =IF(J40/I40<0.5,"Bitte prüfen","") ->  | S40: =IF(J40/I40>2.5,"Bitte prüfen","") ->  | T40: =IF(K40<0,"Bitte prüfen",IF(K40>1.5,"Bitte prüfen","")) -> 
A42: =MAX(A38:A41)+1 -> 19 | B42: Verschub | C42: 03.05.02.05 | E42: 12 | F42: m | G42: 2 | H42: m/h | I42: =E42/G42*I$1 -> 0.25 | J42: 0.25 | K42: 0 | L42: =IF(K42=100%,L40,IF(K42>0%,M40-J40*K42,M40)) -> 2022-01-05T03:45:00 | M42: =L42+J42 -> 2022-01-05T09:45:00 | Q42: =IF(L42=0,"Bitte prüfen","") ->  | R42: =IF(J42/I42<0.5,"Bitte prüfen","") ->  | S42: =IF(J42/I42>2.5,"Bitte prüfen","") ->  | T42: =IF(K42<0,"Bitte prüfen",IF(K42>1.5,"Bitte prüfen","")) -> 
A44: =MAX(A40:A43)+1 -> 20 | B44: HGT-Keil lagenweise einbauen (Rahmbenbauwerkshinterfüllung inkl. Verdichtung) | C44: 03.02.01.04 | D44: paralleles Arbeiten an beiden Rahmenwänden | E44: 360 | F44: m3 | G44: 30 | H44: m3/h | I44: =E44/G44*I$1 -> 0.5 | J44: 0.5 | K44: 0 | L44: =IF(K44=100%,L42,IF(K44>0%,M42-J42*K44,M42)) -> 2022-01-05T09:45:00 | M44: =L44+J44 -> 2022-01-05T21:45:00 | Q44: =IF(L44=0,"Bitte prüfen","") ->  | R44: =IF(J44/I44<0.5,"Bitte prüfen","") ->  | S44: =IF(J44/I44>2.5,"Bitte prüfen","") ->  | T44: =IF(K44<0,"Bitte prüfen",IF(K44>1.5,"Bitte prüfen","")) -> 
D45: Erschwernis: HGT (hydraulisch gebundene Tragschicht)
A46: =MAX(A42:A45)+1 -> 21 | B46: Grundschotter einbauen | C46: 02.02.04.04 | D46: z.B. vom Lkw oder Flachwagen mit klappbaren Seitenborden vor Kopf | E46: 40 | F46: m3 | G46: 30 | H46: m3/h | I46: =E46/G46*I$1 -> 0.05555555556 | J46: 0.0625 | K46: 0 | L46: =IF(K46=100%,L44,IF(K46>0%,M44-J44*K46,M44)) -> 2022-01-05T21:45:00 | M46: =L46+J46 -> 2022-01-05T23:15:00 | Q46: =IF(L46=0,"Bitte prüfen","") ->  | R46: =IF(J46/I46<0.5,"Bitte prüfen","") ->  | S46: =IF(J46/I46>2.5,"Bitte prüfen","") ->  | T46: =IF(K46<0,"Bitte prüfen",IF(K46>1.5,"Bitte prüfen","")) -> 
A48: =MAX(A44:A47)+1 -> 22 | B48: Gleisjoche (6m Länge) einbauen | C48: 02.02.05.02 | D48: Betonschwellen | E48: 30 | F48: m | G48: 30 | H48: m/h | I48: =E48/G48*I$1 -> 0.04166666667 | J48: 0.04166666667 | K48: 0 | L48: =IF(K48=100%,L46,IF(K48>0%,M46-J46*K48,M46)) -> 2022-01-05T23:15:00 | M48: =L48+J48 -> 2022-01-06T00:15:00 | O48: 5 | Q48: =IF(L48=0,"Bitte prüfen","") ->  | R48: =IF(J48/I48<0.5,"Bitte prüfen","") ->  | S48: =IF(J48/I48>2.5,"Bitte prüfen","") ->  | T48: =IF(K48<0,"Bitte prüfen",IF(K48>1.5,"Bitte prüfen","")) -> 
A50: =MAX(A46:A49)+1 -> 23 | B50: Schienenwechsel; Montageschienen ausbauen | C50: 02.02.07.01 | D50: wegen Kleinstmenge Faktor 0,5 ansetzen | E50: 60 | F50: m | G50: 60 | H50: m/h | I50: =E50/G50*I$1 -> 0.04166666667 | J50: 0.04166666667 | K50: 0 | L50: =IF(K50=100%,L48,IF(K50>0%,M48-J48*K50,M48)) -> 2022-01-06T00:15:00 | M50: =L50+J50 -> 2022-01-06T01:15:00 | Q50: =IF(L50=0,"Bitte prüfen","") ->  | R50: =IF(J50/I50<0.5,"Bitte prüfen","") ->  | S50: =IF(J50/I50>2.5,"Bitte prüfen","") ->  | T50: =IF(K50<0,"Bitte prüfen",IF(K50>1.5,"Bitte prüfen","")) -> 
A52: =MAX(A48:A51)+1 -> 24 | B52: Schienen verziehen, auflegen und verspannen | C52: 02.02.06.03 | D52: wegen Kleinstmenge Faktor 0,5 ansetzen | E52: 60 | F52: m | G52: 120 | H52: m/h | I52: =E52/G52*I$1 -> 0.02083333333 | J52: 0.02083333333 | K52: 0 | L52: =IF(K52=100%,L50,IF(K52>0%,M50-J50*K52,M50)) -> 2022-01-06T01:15:00 | M52: =L52+J52 -> 2022-01-06T01:45:00 | Q52: =IF(L52=0,"Bitte prüfen","") ->  | R52: =IF(J52/I52<0.5,"Bitte prüfen","") ->  | S52: =IF(J52/I52>2.5,"Bitte prüfen","") ->  | T52: =IF(K52<0,"Bitte prüfen",IF(K52>1.5,"Bitte prüfen","")) -> 
A54: =MAX(A50:A53)+1 -> 25 | B54: Nachschottern aus offene Schüttgutwagen mit dosierbarer Schwerkraftentladung (z.B. Fc-Wagen) | C54: 02.04.02.01 | D54: einschl. Rampen | E54: 60 | F54: m | G54: 60 | H54: m/h | I54: =E54/G54*I$1 -> 0.04166666667 | J54: 0.04166666667 | K54: 0 | L54: =IF(K54=100%,L52,IF(K54>0%,M52-J52*K54,M52)) -> 2022-01-06T01:45:00 | M54: =L54+J54 -> 2022-01-06T02:45:00 | Q54: =IF(L54=0,"Bitte prüfen","") ->  | R54: =IF(J54/I54<0.5,"Bitte prüfen","") ->  | S54: =IF(J54/I54>2.5,"Bitte prüfen","") ->  | T54: =IF(K54<0,"Bitte prüfen",IF(K54>1.5,"Bitte prüfen","")) -> 
A56: =MAX(A52:A55)+1 -> 26 | B56: Gleis stopfen (1. Stabilisierung maschinell) | C56: 02.04.02.02 | D56: H.V.: 30 m; 1. Stab.: 60 m | E56: 90 | F56: m | G56: 65 | H56: m/h | I56: =E56/G56*I$1 -> 0.05769230769 | J56: 0.0625 | K56: 0 | L56: =IF(K56=100%,L54,IF(K56>0%,M54-J54*K56,M54)) -> 2022-01-06T02:45:00 | M56: =L56+J56 -> 2022-01-06T04:15:00 | Q56: =IF(L56=0,"Bitte prüfen","") ->  | R56: =IF(J56/I56<0.5,"Bitte prüfen","") ->  | S56: =IF(J56/I56>2.5,"Bitte prüfen","") ->  | T56: =IF(K56<0,"Bitte prüfen",IF(K56>1.5,"Bitte prüfen","")) -> 
A58: =MAX(A54:A57)+1 -> 27 | B58: Gleis stopfen (2. Stabilisierung maschinell) | C58: 02.04.02.03 | D58: 2. Stab: 100 m | E58: 100 | F58: m | G58: 90 | H58: m/h | I58: =E58/G58*I$1 -> 0.0462962963 | J58: 0.04166666667 | K58: 0 | L58: =IF(K58=100%,L56,IF(K58>0%,M56-J56*K58,M56)) -> 2022-01-06T04:15:00 | M58: =L58+J58 -> 2022-01-06T05:15:00 | Q58: =IF(L58=0,"Bitte prüfen","") ->  | R58: =IF(J58/I58<0.5,"Bitte prüfen","") ->  | S58: =IF(J58/I58>2.5,"Bitte prüfen","") ->  | T58: =IF(K58<0,"Bitte prüfen",IF(K58>1.5,"Bitte prüfen","")) -> 
A60: =MAX(A56:A59)+1 -> 28 | B60: Gleis stopfen (3x Stopfgänge) maschinell) | C60: 02.04.02.02 | D60: Hebe-Verdichtgang: ca. 30 m 1. Stabilisierung: ca. 60 m (Rampen) 2. Stabilisierung: ca. 100 m (Rampen) | E60: 190 | F60: m | G60: 65 | H60: m/h | I60: =E60/G60*I$1 -> 0.1217948718 | J60: 0.125 | K60: 0 | L60: =IF(K60=100%,L58,IF(K60>0%,M58-J58*K60,M58)) -> 2022-01-06T05:15:00 | M60: =L60+J60 -> 2022-01-06T08:15:00 | Q60: =IF(L60=0,"Bitte prüfen","") ->  | R60: =IF(J60/I60<0.5,"Bitte prüfen","") ->  | S60: =IF(J60/I60>2.5,"Bitte prüfen","") ->  | T60: =IF(K60<0,"Bitte prüfen",IF(K60>1.5,"Bitte prüfen","")) -> 
A62: =MAX(A58:A61)+1 -> 29 | B62: aluminotherm. Schweißen (Skv) 24-26 mm Lückenweite für alle Profile | C62: 02.01.02.01 | D62: Annahme 4 Schweißungen (1 Trupp) | E62: 4 | F62: St | G62: 1.75 | H62: St/h | I62: =E62/G62*I$1 -> 0.09523809524 | J62: 0.1041666667 | K62: 0 | L62: =IF(K62=100%,L60,IF(K62>0%,M60-J60*K62,M60)) -> 2022-01-06T08:15:00 | M62: =L62+J62 -> 2022-01-06T10:45:00 | Q62: =IF(L62=0,"Bitte prüfen","") ->  | R62: =IF(J62/I62<0.5,"Bitte prüfen","") ->  | S62: =IF(J62/I62>2.5,"Bitte prüfen","") ->  | T62: =IF(K62<0,"Bitte prüfen",IF(K62>1.5,"Bitte prüfen","")) -> 
A64: =MAX(A60:A63)+1 -> 30 | B64: Spannungsausgleich ohne Schlussschweißung herstellen | C64: 02.01.03.03 | D64: 2x 150 m Spannungsausgleich (2x Wärmeröhren / 2 Trupps) | E64: 300 | F64: m | G64: 150 | H64: m/h | I64: =E64/G64*I$1 -> 0.08333333333 | J64: 0.08333333333 | K64: 0.5 | L64: =IF(K64=100%,L62,IF(K64>0%,M62-J62*K64,M62)) -> 2022-01-06T09:30:00 | M64: =L64+J64 -> 2022-01-06T11:30:00 | Q64: =IF(L64=0,"Bitte prüfen","") ->  | R64: =IF(J64/I64<0.5,"Bitte prüfen","") ->  | S64: =IF(J64/I64>2.5,"Bitte prüfen","") ->  | T64: =IF(K64<0,"Bitte prüfen",IF(K64>1.5,"Bitte prüfen","")) -> 
A66: =MAX(A62:A65)+1 -> 31 | B66: Gleisschaltmittel (Achszähler, PZB, Linienleiter, Balisen etc.) anbauen | C66: 07.01.03.01.01 | D66: abhängig vom Umfang LST, Einbindung Fachplanung erforderlich | E66: 2 | F66: St | G66: 2 | H66: St/h | I66: =E66/G66*I$1 -> 0.04166666667 | J66: 0.04166666667 | K66: 0 | L66: =IF(K66=100%,L64,IF(K66>0%,M64-J64*K66,M64)) -> 2022-01-06T11:30:00 | M66: =L66+J66 -> 2022-01-06T12:30:00 | Q66: =IF(L66=0,"Bitte prüfen","") ->  | R66: =IF(J66/I66<0.5,"Bitte prüfen","") ->  | S66: =IF(J66/I66>2.5,"Bitte prüfen","") ->  | T66: =IF(K66<0,"Bitte prüfen",IF(K66>1.5,"Bitte prüfen","")) -> 
F67: Annahme getroffen
A68: =MAX(A64:A67)+1 -> 32 | B68: Erdungseinrichtungen (Schienen-, Gleisverbinder, Betriebserden etc.) anbauen einschl. Hilfsbrücke Bauwerk erden | C68: 06.08.01.01 | E68: 2 | F68: St | G68: 4 | H68: St/h | I68: =E68/G68*I$1 -> 0.02083333333 | J68: 0.02083333333 | K68: 0.5 | L68: =IF(K68=100%,L66,IF(K68>0%,M66-J66*K68,M66)) -> 2022-01-06T12:00:00 | M68: =L68+J68 -> 2022-01-06T12:30:00 | Q68: =IF(L68=0,"Bitte prüfen","") ->  | R68: =IF(J68/I68<0.5,"Bitte prüfen","") ->  | S68: =IF(J68/I68>2.5,"Bitte prüfen","") ->  | T68: =IF(K68<0,"Bitte prüfen",IF(K68>1.5,"Bitte prüfen","")) -> 
F69: Annahme getroffen
A70: =MAX(A66:A69)+1 -> 33 | B70: ggf. Prüfung, ob Abnahmehandlungen (LST) notwendig sind | C70: 07.01.08.01 | D70: Achszähler | E70: 1 | F70: St | G70: 2 | H70: St/h | I70: =E70/G70*I$1 -> 0.02083333333 | J70: 0.02083333333 | K70: 0 | L70: =IF(K70=100%,L68,IF(K70>0%,M68-J68*K70,M68)) -> 2022-01-06T12:30:00 | M70: =L70+J70 -> 2022-01-06T13:00:00 | Q70: =IF(L70=0,"Bitte prüfen","") ->  | R70: =IF(J70/I70<0.5,"Bitte prüfen","") ->  | S70: =IF(J70/I70>2.5,"Bitte prüfen","") ->  | T70: =IF(K70<0,"Bitte prüfen",IF(K70>1.5,"Bitte prüfen","")) -> 
F71: Annahme getroffen
A72: =MAX(A68:A71)+1 -> 34 | B72: ggf. Prüfung La-Einrichtung entsprechend VzG und Planung, ggf. Geschwindigkeitsüberwachung (GÜ - PZB-Magnete) für Nachlauf-La | C72: 07.01.02.03 | D72: keine baulichen Veränderungen an der Anlage gegenüber dem Urzustand | E72: 6 | F72: St | G72: 4 | H72: St/h | I72: =E72/G72*I$1 -> 0.0625 | J72: 0.0625 | K72: 0.5 | L72: =IF(K72=100%,L70,IF(K72>0%,M70-J70*K72,M70)) -> 2022-01-06T12:45:00 | M72: =L72+J72 -> 2022-01-06T14:15:00 | Q72: =IF(L72=0,"Bitte prüfen","") ->  | R72: =IF(J72/I72<0.5,"Bitte prüfen","") ->  | S72: =IF(J72/I72>2.5,"Bitte prüfen","") ->  | T72: =IF(K72<0,"Bitte prüfen",IF(K72>1.5,"Bitte prüfen","")) -> 
A74: =MAX(A70:A73)+1 -> 35 | B74: Erdungsvorrichtung ausbauen und Oberleitung einschalten (1 Schaltgruppe) | C74: 08.01.02.02 | E74: 2 | F74: psch | G74: 4 | H74: psch/h | I74: =E74/G74*I$1 -> 0.02083333333 | J74: 0.02083333333 | K74: 0.5 | L74: =IF(K74=100%,L72,IF(K74>0%,M72-J72*K74,M72)) -> 2022-01-06T13:30:00 | M74: =L74+J74 -> 2022-01-06T14:00:00 | Q74: =IF(L74=0,"Bitte prüfen","") ->  | R74: =IF(J74/I74<0.5,"Bitte prüfen","") ->  | S74: =IF(J74/I74>2.5,"Bitte prüfen","") ->  | T74: =IF(K74<0,"Bitte prüfen",IF(K74>1.5,"Bitte prüfen","")) -> 
A76: =MAX(A72:A75)+1 -> 36 | B76: Sperrung aufheben | C76: 08.01.01.02 | E76: 1 | F76: psch | G76: 2 | H76: psch/h | I76: =E76/G76*I$1 -> 0.02083333333 | J76: 0.02083333333 | K76: 0 | L76: =IF(K76=100%,L74,IF(K76>0%,M74-J74*K76,M74)) -> 2022-01-06T14:00:00 | M76: =L76+J76 -> 2022-01-06T14:30:00 | Q76: =IF(L76=0,"Bitte prüfen","") ->  | R76: =IF(J76/I76<0.5,"Bitte prüfen","") ->  | S76: =IF(J76/I76>2.5,"Bitte prüfen","") ->  | T76: =IF(K76<0,"Bitte prüfen",IF(K76>1.5,"Bitte prüfen","")) -> 
O77: =M76-L1 -> 3.645833333
